Workbook

Sheet Rough In
C1: New Construction Rough In - Costing Form
C2: PO: | G2: Deliver On:
C3: Notes:
C4: Add following equipment previously purchased to delivery: | F4: Ticket # | G4: Job PO | I4: Model | J4: Serial #
C7: #
A8: Furnace | E8: Transitional Takeoffs | G8: # | I8: Stick-On Flat 90’s | K8: #
A9: Coil | E9: 24x12 | F9: ST-1203-2412 | I9: 8" | J9: ST-306-08
A10: Air Handler | E10: 24x10 | F10: ST-1203-2410 | I10: 7" | J10: ST-306-07
A11: Geothermal | E11: 20x10 | F11: ST-1203-2010 | I11: 6" | J11: ST-306-06
A12: Heater Pack | E12: 24x8 | F12: ST-1203-2408 | I12: 4" | J12: ST-306-04
A13: Bottom Box | B13: =_xlfn.LET(_xlpm.furn,B8,_xlpm.ah,B10,_xlpm.fw,IFERROR(_xlfn.XLOOKUP(_xlpm.furn,Furnace!$C:$C,Furnace!$H:$H),""),_xlpm.aw,IFERROR(_xlfn.XLOOKUP(_xlpm.ah,'Air Handler'!$C:$C,'Air Handler'!$F:$F),""),IF(_xlpm.furn<>"",IFERROR(_xlfn.XLOOKUP(_xlpm.fw,Misc!$B$4:$B$7,Misc!$E$4:$E$7),"width not matched"),IF(_xlpm.ah<>"",IFERROR(_xlfn.XLOOKUP(_xlpm.aw,Misc!$B$9:$B$12,Misc!$E$9:$E$12),"width not matched"),""))) ->  | E13: 22x8 | F13: ST-1203-2208
A14: Plenum | B14: =_xlfn.LET(_xlpm.coil,B9,_xlpm.furn,B8,_xlpm.ah,B10,_xlpm.cw,IFERROR(_xlfn.XLOOKUP(_xlpm.coil,Coil!$C:$C,Coil!$F:$F),""),_xlpm.fw,IFERROR(_xlfn.XLOOKUP(_xlpm.furn,Furnace!$C:$C,Furnace!$H:$H),""),_xlpm.aw,IFERROR(_xlfn.XLOOKUP(_xlpm.ah,'Air Handler'!$C:$C,'Air Handler'!$F:$F),""),IF(_xlpm.coil<>"",IFERROR(_xlfn.XLOOKUP(_xlpm.cw,Misc!$B$26:$B$29,Misc!$E$26:$E$29),"width not matched"),IF(_xlpm.furn<>"",IFERROR(_xlfn.XLOOKUP(_xlpm.fw,Misc!$B$16:$B$19,Misc!$E$16:$E$19),"width not matched"),IF(_xlpm.ah<>"",IFERROR(_xlfn.XLOOKUP(_xlpm.aw,Misc!$B$21:$B$24,Misc!$E$21:$E$24),"width not matched"),"")))) ->  | E14: 20x8 | F14: ST-1203-2008 | I14: Round Pipe (5' Sections) 30GA
A15: Coil Adapter | B15: =_xlfn.LET(_xlpm.furn,B8,_xlpm.coil,B9,_xlpm.fw,IFERROR(_xlfn.XLOOKUP(_xlpm.furn,Furnace!$C:$C,Furnace!$H:$H),""),_xlpm.cw,IFERROR(_xlfn.XLOOKUP(_xlpm.coil,Coil!$C:$C,Coil!$F:$F),""),IF(OR(_xlpm.furn="",_xlpm.coil="",_xlpm.fw="",_xlpm.cw=""),"",IF(_xlpm.fw=_xlpm.cw,"",_xlfn.LET(_xlpm.lo,IF(_xlpm.fw<=_xlpm.cw,_xlpm.fw,_xlpm.cw),_xlpm.hi,IF(_xlpm.fw<=_xlpm.cw,_xlpm.cw,_xlpm.fw),IFERROR(_xlfn.XLOOKUP(1,(Misc!$B$33:$B$45=_xlpm.lo)*(Misc!$C$33:$C$45=_xlpm.hi),Misc!$E$33:$E$45),"no adapter found"))))) ->  | E15: 18x8 | F15: ST-1203-1808 | I15: 3" | J15: ST-RDP-053003
A16: Coil Spacer | B16: =IF(D16<>TRUE,"",_xlfn.LET(_xlpm.furn,B8,_xlpm.coil,B9,_xlpm.fw,IFERROR(_xlfn.XLOOKUP(_xlpm.furn,Furnace!$C:$C,Furnace!$H:$H),""),_xlpm.cw,IFERROR(_xlfn.XLOOKUP(_xlpm.coil,Coil!$C:$C,Coil!$F:$F),""),IF(OR(_xlpm.furn="",_xlpm.coil="",_xlpm.fw="",_xlpm.cw=""),"",IF(_xlpm.fw<>_xlpm.cw,"N/A-widths differ",IFERROR(_xlfn.XLOOKUP(1,(Misc!$B$33:$B$45=_xlpm.fw)*(Misc!$C$33:$C$45=_xlpm.fw),Misc!$E$33:$E$45),"spacer not found"))))) ->  | C16: =IF(AND(D16=TRUE,LEFT(B16,3)="FAB"),1,"") ->  | D16: FALSE | E16: 16x8 | F16: ST-1203-1608 | I16: 4" | J16: ST-RDP-053004
A17: Bricks | B17: HO-619345 | E17: 14x8 | F17: ST-1203-1408 | I17: 6" | J17: ST-RDP-053006
A18: Adjustable Pump-Ups | B18: DV-HPR6-2P | E18: 12x8 | F18: ST-1203-1208 | I18: 7" | J18: ST-RDP-053007
A19: SMALL BYP. HUMIDIFIER | B19: HUMCRSBP2412 | E19: 10x8 | F19: ST-1203-1008 | I19: 8" | J19: ST-RDP-053008
A20: LARGE BYP. HUMIDIFIER | B20: HUMCRLBP2417 | I20: 10" | J20: ST-RDP-053010
E21: Duct - 5' Sections | I21: 12" | J21: ST-RDP-053012
A22: Media Cabinets | E22: 25x10 | F22: ST-DT-602510 | I22: 14" | J22: ST-RDP-052614
A23: Core Media Cabinet - 16X25 | B23: EZXCABCR1016 | E23: 24x12 | F23: ST-DT-602412 | I23: 16" | J23: ST-RDP-052616
A24: Core Media Cabinet - 20X25 | B24: EZXCABCR1320 | E24: 24x10 | F24: ST-DT-602410
A25: Media Cabinet - 24X25 | B25: FILCABXL0024 | E25: 20x10 | F25: ST-DT-602010 | I25: Boot Frames
A26: Honeywell Media Cab 16x20 | B26: HW-F100F1620 | E26: 24x8 | F26: ST-DT-602408 | I26: H-4 Boot Frame | J26: PT-H4
A27: Honeywell Media Cab 20x20 | B27: HW-F100F2020 | E27: 22x8 | F27: ST-DT-602208 | I27: H-6 Boot Frame | J27: PT-H6
A28: Honeywell Media Cab 20x25 | B28: HW-F100F2025 | E28: 20x8 | F28: ST-DT-602008
E29: 18x8 | F29: ST-DT-601808 | I29: Boots
A30: Standard Items | E30: 16x8 | F30: ST-DT-601608 | I30: 4x10x4 end boot | J30: ST-1373-041004
A31: Tub 3/4" screws | B31: MA-HW8X3/4ZT | C31: 1 | E31: 14x8 | F31: ST-DT-601408 | I31: 4x10x4 L boot | J31: ST-1374-041004
A32: Tub 1/2" screws | B32: MA-HW8X1/2ZT | C32: 1 | E32: 12x8 | F32: ST-DT-601208 | I32: 4x10x4 straight boot | J32: ST-1370-041004
A33: Basset Hangers | B33: BP-A125 | E33: 10x8 | F33: ST-DT-601008 | I33: 4x10x6 L boot | J33: ST-1374-041006
A34: 5' Drives | B34: ST-213-60 | E34: 8x8 | F34: ST-DT-600808 | I34: 4x10x6 end boot | J34: ST-1373-041006
A35: 5' S-Locks | B35: ST-209-60 | I35: 4x10x6 straight boot | J35: ST-1370-041006
A36: Rolls of 3" tape | B36: DT-322F3 | E36: End Caps | I36: 4x12x6 end boot | J36: ST-1373-041206
A37: Rolls of mastic tape | B37: AFG-1404-181 | E37: 25x12 | F37: ST-1210-3012 | I37: 4x12x6 L boot | J37: ST-1374-041206
A38: Duct Sealant Gallon Pail | B38: HF-SDSWB | E38: 24x12 | F38: ST-1210-2412 | I38: 4x12x6 straight boot | J38: ST-1370-041206
A39: 2" brushes | B39: DV-B503 | E39: 24x10 | F39: ST-1210-2410 | I39: 4x12x7 L boot | J39: ST-1374-041207
A40: Tubes of Clear Silicone | B40: BO-370C | E40: 20x10 | F40: ST-1210-2010 | I40: 4x12x7 straight boot | J40: ST-1370-041207
A41: 10" Section - 3/4" PVC | B41: BR-6106 | C41: 1 | E41: 24x8 | F41: ST-1210-2408 | I41: 4x12x7 end boot | J41: ST-1373-041207
A42: EZ-Trap Clear PVC Trap | B42: RC-83114 | E42: 22x8 | F42: ST-1210-2208 | I42: 6x10x7 end-boot | J42: ST-1373-061007
A43: 3/4" PVC threaded male | B43: BR-0342 | C43: 1 | E43: 20x8 | F43: ST-1210-2008 | I43: 6x10x7 L boot | J43: ST-1374-061007
A44: 3/4" PVC threaded female | B44: BR-0341 | E44: 18x8 | F44: ST-1210-1808 | I44: 6x10x7 straight boot | J44: ST-1370-061007
A45: 3/4" PVC 90's | B45: BR-0344 | C45: 6 | E45: 16x8 | F45: ST-1210-1608 | I45: 6x12x7 end boot | J45: ST-1373-061207
A46: 3/4" PVC T's | B46: BR-0349 | C46: 2 | E46: 14x8 | F46: ST-1210-1408 | I46: 6x12x7 L boot | J46: ST-1374-061207
A47: 3/4" PVC 45’s | B47: BR-0346 | C47: 4 | E47: 12x8 | F47: ST-1210-1208 | I47: 6x12x7 straight boot | J47: ST-1370-061207
A48: Glue | B48: DV-510 | C48: 1 | E48: 10x8 | F48: ST-1210-1008 | I48: 6x12x8 straight boot | J48: ST-1370-061208
A49: Cleaner | B49: DV-PPC16 | C49: 1 | E49: 8x8 | F49: ST-1210-0808 | I49: 6x12x8 end boot | J49: ST-1373-061208
A50: Rubber 3"x3" pads | B50: DV-MP3E | C50: 5 | I50: 6x12x8 L boot | J50: ST-1374-061208
A51: Bag 36" Panduits | B51: DV-7P36 | E51: Supply Duct Reducers | I51: 6x14x8 L Boot | J51: ST-1374-061408
A52: Foil Back Fiberglass-2" 75' | B52: KF-E24875FSKLKDW | E52: 2" reducer for 8" duct | F52: ST-187-02 | I52: 6x14x8 Straight Boot | J52: ST-1370-061408
A53: Lineset Clips - Reg. Size | B53: TP-41125 (5 PER PACK) | C53: 1 | E53: 4" reducer for 8" duct | F53: ST-187-04 | I53: 6X14X8 end boot | J53: ST-1373-061408
A54: Roll of 3" Webbing | B54: DV-710102 | E54: 6" reducer for 8" duct | F54: ST-187-06
A55: Aquaguard Float Switch | B55: AG-1200 | E55: 8" reducer for 8" duct | F55: ST-187-08 | I55: Oval (100" sections)
E56: 24x12 to 24x10 reduc. | F56: ST-1251-24122410 | I56: 6" | J56: ST-4100-10006
A57: Temp Filters - Pleated 1" | E57: 24x10 to 24x8 reduc. | F57: ST-1251-24102408 | I57: 7" | J57: ST-4100-10007
A58: 16x25x1 temp filter | B58: FI-16X25X1 | I58: 8" | J58: ST-4100-10008
A59: 20x25x1 temp filter | B59: FI-20X25X1 | E59: Round Reducers
A60: 24x25x1 temp filter | B60: FI-24X25X1 | C60: =IF(C25=1,6,"") ->  | E60: 4"-3" | F60: ST-133-040326 | I60: Oval to Round L-Boot
A61: 16x20x1 temp filter | B61: FI-16X20X1 | E61: 6"-4" | F61: ST-133-060426 | I61: 6" oval to round L-Boot | J61: ST-4244NC-06
A62: 20x20x1 temp filter | B62: FI-20X20X1 | E62: 8"-6" | F62: ST-133-080626 | I62: 7" oval to round L-Boot | J62: ST-4244NC-07
E63: 10"-8" | F63: ST-133-100826 | I63: 8" oval to round L-Boot | J63: ST-4244NC-08
A64: Drywall Edging | E64: 12"-10" | F64: ST-133-121026
A65: 5' sections | B65: ST-210-60 | E65: 14"-10" | F65: ST-133-141026 | I65: Oval to Round End Boot
E66: 14"-12" | F66: ST-133-141226 | I66: 6" oval-round end boot | J66: ST-4247NC-0606
A67: Duct Fittings | E67: 16"-12" | F67: ST-133-161226 | I67: 7" oval-round end boot | J67: ST-4247NC-0707
A68: 10x8 SW 90 | B68: ST-1240-1008 | E68: 16"-14" | F68: ST-133-161426 | I68: 8" oval-round end boot | J68: ST-4247NC-0808
A69: 10x8 BW 90 | B69: ST-1246-1008
A70: 12x8 SW 90 | B70: ST-1240-1208 | E70: Y's | I70: Oval-Round Straight Boot
A71: 12x8 BW 90 | B71: ST-1246-1208 | E71: 6X4X4 WITH REDUCER | F71: ST-324-060404 | I71: 6" oval-round straight boot | J71: ST-4248NC-0606
A72: 14x8 SW 90 | B72: ST-1240-1408 | E72: 7x5x3 WITH REDUCER | F72: ST-324-070503 | I72: 7" oval-round straight boot | J72: ST-4248NC-0707
A73: 14x8 BW 90 | B73: ST-1246-1408 | E73: 8X7X6 WITH REDUCER | F73: ST-324-080706 | I73: 8" oval-round straight boot | J73: ST-4248NC-0808
A74: 16x8 SW 90 | B74: ST-1240-1608
A75: 16x8 BW 90 | B75: ST-1246-1608 | E75: T's | I75: Oval Stackhead w/wings
A76: 18x8 SW 90 | B76: ST-1240-1808 | E76: 4x4x4 | F76: ST-219-040404 | I76: 6" oval stack head w/4x10 | J76: ST-4235-0941006
A77: 18x8 BW 90 | B77: ST-1246-1808 | E77: 6x4x4W/reducers | F77: ST-219-060606 | I77: 7” oval stackhead w/4x12 | J77: ST-4235-0941207
A78: 20x8 SW 90 | B78: ST-1240-2008 | E78: 6x6x6 | F78: ST-219-060606 | I78: 7” oval stackhead w/6x12 | J78: ST-4235-0961207
A79: 20x8 BW 90 | B79: ST-1246-2008 | E79: 7x7x7 | F79: ST-219-070707 | I79: 8" oval stackhead w/6x14 | J79: ST-4235-0961408
A80: 22x8 SW 90 | B80: ST-1240-2208 | E80: 18x16x16 W/reducers | F80: ST-219-080808
A81: 22x8 BW 90 | B81: ST-1246-2208 | I81: Stack (100" sections)
A82: 24x8 SW 90 | B82: ST-1240-2408 | E82: Short Collars w/Crimp | I82: 3.25x10 | J82: ST-WSBL-1000310
A83: 24x8 BW 90 | B83: ST-1246-2408 | E83: 4" | F83: ST-172-04 | I83: 3.25x12 | J83: ST-WSBL-1000312
A84: 24x10 SW 90 | B84: ST-1240-2410 | E84: 6" | F84: ST-172-06 | I84: 3.25x14 | J84: ST-WSBL-1000314
A85: 24x10 BW 90 | B85: ST-1246-2410 | E85: 7" | F85: ST-172-07
E86: 8" | F86: ST-172-08 | I86: Stack to Round L-Boot
A87: End Caps | E87: 10" | F87: ST-172-10 | I87: 3x10x6 | J87: ST-1218-031006
A88: 6" | B88: ST-152-06 | E88: 12" | F88: ST-172-12 | I88: 3x10x7 | J88: ST-1218-031007
A89: 7" | B89: ST-152-07 | E89: 14" | F89: ST-172-14 | I89: 3x12x7 | J89: ST-1218-031207
A90: 8" | B90: ST-152-08 | E90: 16" | F90: ST-172-16 | I90: 3x12x8 | J90: ST-1218-031208
A91: 10" | B91: ST-152-10 | I91: 3X14X8 | J91: ST-1218-031408
A92: 12" | B92: ST-152-12 | E92: Short Collars - No Crimp
A93: 14" | B93: ST-152-14 | E93: 4" | F93: ST-171-04 | I93: Stack to Round End Boots
A94: 16" | B94: ST-152-16 | E94: 6" | F94: ST-171-06 | I94: 3x10x6 | J94: ST-1219-031006
E95: 7" | F95: ST-171-07 | I95: 3X12X6 | J95: ST-1219-031206
A96: Fans(Include Finish Kit w/order) | E96: 8" | F96: ST-171-08 | I96: 3x12x7 | J96: ST-1219-031207
A97: 50 CFM Fan | B97: BF-1667EH | E97: 10" | F97: ST-171-10 | I97: 3X14X7 | J97: ST-1219-031407
A98: 50 CFM Fan | B98: BF-2677H/2678F | E98: 12" | F98: ST-171-12
A99: 50 CFM LIGHT | B99: BF-2678f | E99: 14" | F99: ST-171-14 | I99: Stack to Round Straight Boots
A100: 80 CFM Fan | B100: BF-AE80B | I100: 3x10x6 | J100: ST-1214-031006
A101: 80 CFM FAN | B101: BF-A000HLNF | E101: PVC | I101: 3x10x7 | J101: ST-1214-031007
A102: 80 CFM Light | B102: BF-AE80BF1 | E102: 2" PVC - 10' Sections | F102: BR-6082 | I102: 3x12x7 | J102: ST-1214-031207
A103: 50 Finish Kit | B103: BF-1688EF | E103: 2" PVC 90 | F103: BR-0389 | I103: 3x12x8 | J103: ST-1214-031208
E104: 2" PVC 45 | F104: BR-0387DWV | I104: 3x14x8 | J104: ST-1214-031408
A105: Panning | E105: 2" PVC Coupling | F105: BR-0384
A106: Single Sheet | B106: ST-20717 | E106: 2" J-Hooks | F106: DV-515J2000 | I106: Deep Boxes
A107: Double Sheet | B107: ST-20833 | E107: 2" Concentric Kit | F107: DV-CVENT2 | I107: 4x10 | J107: ST-1172-0410
A108: Thermopan Single | B108: TP-1648 | E108: 3" PVC - 10' Sections | F108: BR-6081 | I108: 4x12 | J108: ST-1172-0412
A109: Thermopan Double | B109: TP-3236 | E109: 3" PVC 90 | F109: BR-0419 | I109: 6x14 | J109: ST-1172-0614
A110: Thermopan Header | B110: TP-16013 | E110: 3" PVC 45 | F110: BR-0417 | I110: 6x12 | J110: ST-1172-0612
E111: 3" PVC Coupling | F111: BR-0415
A112: FLEX R8 | E112: 3" J-Hooks | F112: DV-515J3000 | I112: Stick-On Long Collars(w/dampers)
A113: 4" | B113: FX-4KPR8 | E113: 3"-2" PVC reducer | F113: BR-0414 | I113: 4" | J113: ST-302-04
A114: 6" | B114: FX-6KPR8 | E114: 3" Concentric Kit | F114: DV-CVENT3 | I114: 6" | J114: ST-302-06
A115: 7" | B115: FX-7KPR8 | I115: 7" | J115: ST-302-07
A116: 8" | B116: FX-8KPR8 | E116: Register Starting Collars | I116: 8" | J116: ST-302-08
A117: 10" | B117: FX-10KPR8 | E117: 4x10 | F117: ST-PH101-0410 | I117: 10" | J117: ST-302-10
A118: 12" | B118: FX-12KPR8 | E118: 4x12 | F118: ST-PH101-0412 | I118: 12" | J118: ST-302-12
A119: 14" | B119: FX-14KPR8 | I119: 14" | J119: ST-302-14
A120: 16" | B120: FX-16KPR8 | E120: Starting Collars | I120: 18" | J120: ST-302-16
E121: 10X8 | F121: ST-1200-0808
A122: Elbows for Round Pipe | E122: 10x8 | F122: ST-1200-1008 | I122: Alum. Bath Flex (25')
A123: 4" | B123: ST-ELV-3004 | E123: 12x8 | F123: ST-1200-1208 | I123: 4" | J123: FX-4MC
A124: 6" | B124: ST-ELV-3006 | E124: 14x8 | F124: ST-1200-1408 | I124: 3" | J124: FX-3MC
A125: 7" | B125: ST-ELV-3007 | E125: 16X8 | F125: ST-1200-1608
A126: 8" | B126: ST-ELV-3008 | E126: 18x8 | F126: ST-1200-1808 | I126: Roof Jack
A127: 10" | B127: ST-ELV-3010 | E127: 20x8 | F127: ST-1200-2008 | I127: Small | J127: BF-636
A128: 12" | B128: ST-ELV-2612 | E128: 24x8 | F128: ST-1200-2208 | I128: Large | J128: BF-634
A129: 14" | B129: ST-ELV-2614 | E129: 20x10 | F129: ST-1200-2408 | I129: 3" Rubber Plumber Flashing | J129: DV-5-11866
A130: 16" | B130: ST-ELV-2616 | E130: 24x10 | F130: ST-1200-2410
E131: 24x12 | F131: ST-1200-2412 | I131: Evolution Zone Dampers
A132: Return Air Frames | E132: 30x12 | F132: ST-1200-3012 | I132: 6" | J132: DAMPRND06INC
A133: 12x6 | B133: ST-31HC-0610 | I133: 8" | J133: DAMPRND08INC
A134: 14x6 | B134: ST-31HC-0614 | E134: Manual Damp. - Rnd Pipe | I134: 10" | J134: DAMPRND10INC
A135: 24x6 | B135: ST-33HC-0824 | E135: 4" | F135: ST-180-2-04 | I135: 12" | J135: DAMPRND12INC
A136: 30x6 | B136: ST-33HC-0630 | E136: 6" | F136: ST-180-2-06 | I136: 14" | J136: DAMPRND14INC
A137: 30x10 | B137: ST-33HC-3008 | E137: 7" | F137: ST-180-2-07 | I137: 16" | J137: DAMPRND16INC
A138: 30x12 | B138: ST-33HC-3012 | E138: 8" | F138: ST-180-2-08 | I138: 8" x 10" | J138: DAMPREC08X10
A139: 30x8 | B139: ST-33HC-3008 | E139: 10" | F139: ST-180-2-10 | I139: 8" x 14" | J139: DAMPREC08X14
A140: 12x12 | B140: ST-33HC-1212 | E140: 12" | F140: ST-180-2-12 | I140: 8" x 18" | J140: DAMPREC08X18
A141: 14x14 | B141: ST-33HC-1414 | E141: 14" | F141: ST-180-2-14 | I141: 8" x 24" | J141: DAMPREC08X24
A142: 16x16 | B142: ST-33HC-1616 | E142: 16" | F142: ST-180-2-16 | I142: 10" x 10" | J142: DAMPREC10X10
A143: 20x20 | B143: ST-33HC-2020 | I143: 10" x 14" | J143: DAMPREC10X14
E144: Spiral Couplings/Accessories | I144: 10" x 18" | J144: DAMPREC10X18
A145: Stick-on Saddle Collars | E145: 10" spiral coupling | F145: LSM-SC10 | I145: 10" x 24" | J145: DAMPREC10X24
A146: 4" | B146: ST-305-04 | E146: 12" spiral coupling | F146: LSM-SC12
A147: 6" | B147: ST-305-06 | E147: 14" spiral coupling | F147: LSM-SC14 | I147: Manual Dampers
A148: 7" | B148: ST-305-07 | E148: 16" spiral coupling | F148: LSM-SC16 | I148: 24x8 | J148: ST-182-2408
A149: 8" | B149: ST-305-08 | E149: Clutchers (for steel cable) | F149: DUR-30351 | I149: 22x8 | J149: ST-182-2208
A150: 10" | B150: ST-305-10 | E150: Roll of steel braided cable | F150: DUR-30202 | I150: 20x8 | J150: ST-182-2008
A151: 12" | B151: ST-305-12 | E151: 4x12 spiral register | F151: TRU-SU2A12X4 | I151: 18x8 | J151: ST-182-1808
A152: 14" | B152: ST-305-14 | E152: 6x12 spiral register | F152: TRU-SU2A12X6 | I152: 16x8 | J152: ST-182-1608
I153: 14x8 | J153: ST-182-1408
A154: Dryer Vent Box | E154: Makeup Air Damper Kit | I154: 12x8 | J154: ST-182-1208
A155: (2x4 wall box) | B155: ST-DVB350 | E155: Broan 6" | F155: NU-MD6TU | I155: 10X8 | J155: ST-182-1008
A156: (2x6 wall box) | B156: ST-DVB425 | E156: Broan 8" | F156: NU-MD8TU
E157: Broan 10" | F157: NU-MD10TU | I157: Standard Lineset - 3/4" Insul
A158: Spiral Pipe | I158: 5/8" x 3/8" x 40' | J158: LS-583840-12
A159: 4" | B159: LSM-SP04 | E159: Minisplit Lineset | I159: 5/8" x 3/8" x 50' | J159: LS-583850-12
A160: 6" | B160: LSM-SP06 | E160: 3/8" x1/4" x 25' | F160: LS-MS381425-12EZ | I160: 3/4" x 3/8" x 40' | J160: LS-343840-12
A161: 7" | B161: LSM-SP07 | E161: 3/8" x1/4" x 50' | F161: LS-MS381450-12EZ | I161: 3/4" x 3/8" x 50' | J161: LS-343850-12
A162: 8" | B162: LSM-SP08 | E162: 1/2" x 1/4" x 25' | F162: LS-MS121425-12EZ | I162: 7/8" x 3/8" x 40' | J162: LS-783840-12
A163: 10" | B163: LSM-SP10 | E163: 1/2" x 1/4" x 50' | F163: LS-MS121450-12EZ | I163: 7/8" x 3/8" x 50' | J163: LS-783850-12
A164: 12" | B164: LSM-SP12 | E164: 5/8" x 3/8" x 25' | F164: LS-MS583825-12EZ | I164: 2" Lineset Clamps | J164: TP-41125
A165: 14" | B165: LSM-SP14 | E165: 5/8" x 3/8" x 50' | F165: LS-MS583850-12EZ
A166: 16" | B166: LSM-SP16 | E166: 3/4" x 3/8" x 35' | F166: LS-MS343835-12EZ
E167: 3/4" x 3/8" x 50' | F167: LS-MS343850-12EZ

Sheet Finish
C1: New Construction Finish - Costing Form
C2: PO: | G2: Deliver On:
C3: Notes:
C4: Add following equipment previously purchased to delivery: | F4: Ticket # | G4: Job PO | I4: Model | J4: Serial #
C8: # | E8: Side Wall Registers | G8: # | I8: Exterior Exhaust Caps | K8: #
A9: OUTDOOR UNIT | E9: 4x10 | F9: LI-10V10X4 | I9: 4" Brown Exhaust | J9: DE-HS4B
A10: OUTDOOR UNIT | E10: 4x12 | F10: LI-10V12X4 | I10: 4" White Exhaust | J10: DE-HS4W
A11: OUTDOOR UNIT | E11: 4x14 | F11: LI-10V14X4 | I11: 6" White Exhaust | J11: DE-HS6W
A12: AC Poles: | B12: SPS-2/POLE | E12: 6x10 | F12: LI-10V10X6 | I12: 6" Brown Exhuast | J12: DE-HS6B
A13: Pole End Cap | B13: SPS-2/CAP | E13: 6x12 | F13: LI-10V12X6 | I13: 8" Exhaust
A14: Locking Caps: | B14: CD2290 | E14: 6x14 | F14: LI-10V14X6 | I14: 10" Exhaust
A15: 6' UV Armor Flex - 3/4" | B15: P809-T03434
A16: 6' UV Armor Flex - 7/8" | E16: Floor Registers | I16: Exterior Intake Caps
A17: Clear Silicone | B17: BO-370C | E17: 4x10 | F17: LI-414X10 | I17: 6" White Intake | J17: DE-HSM6W
A18: White Silicone | B18: BO-370W | E18: 4x12 | F18: LI-414x12 | I18: 6" Brown Intake | J18: DE-HSM6B
A19: Thumb Gum: | B19: P904-0303 | E19: 4x14 | F19: LI-414x14 | I19: 8" Intake
A20: Finish Filter 16x25x4: | B20: HW-FC100A1029 | E20: 6x10 | F20: LI-416x10 | I20: 10" Intake
A21: Finish Filter 20x25x4: | B21: HW-FC100A1037 | E21: 6x12 | F21: LI-416x12
A22: Finish Filter 24x25x4: | B22: FILXUMC112425 | E22: 6x14 | F22: LI-416x14 | I22: Toe Kick Registers
A23: Finish Filter 16x20x4: | B23: HW-FC100A1003 | I23: 2x10 | J23: LI-41F2X10
A24: Finish Filter 20x20x4: | B24: HW-FC100A1011 | E24: Floor Return Grates | I24: 2x12 | J24: LI-41F2X12
E25: 6x12 | F25: LI-356x12
A26: Return Air Grills | E26: 6x14 | F26: LI-356x14 | I26: Soffit Caps
A27: 12x6 | B27: LI-19H12X6 | E27: 30x10 | F27: LI-3510x30 | I27: Under-eve Vents | J27: DE-EVE
A28: 14x6 | B28: LI-19H14X6 | E28: 30x12 | F28: LI-3512x30
A29: 24x6 | B29: LI-19H24X6 | E29: 14X14 | F29: LI-3514X14 | I29: 2x2 Supply Lay-In
A30: 30x6 | B30: LI-19H30X6 | I30: 2x2x6" | J30: KR-1450F2306
A31: 12x12 | B31: LI-19H12X12 | E31: Condenser Pads | I31: 2x2x8" | J31: KR-1450F2306
A32: 30x10 | B32: LI-19H30X10 | E32: 6" Adjust Pump-Ups | F32: DV-HPR6-2P | I32: 2x2x10" | J32: KR-1450F2310
A33: 30x12 | B33: LI-19H30x12 | E33: 24X24 | F33: P143-E2424 | I33: 2x2x12" | J33: KR-1450F2312
A34: 14x14 | B34: LI-19H14x14 | E34: 30X30 | F34: P143-E3030
A35: 16x16 | B35: LI-19H16x16 | E35: 32X32 | F35: P143-E3232 | I35: 2x2 Return Lay-In (Perforated one piece)
A36: 20x20 | B36: LI-19H20x20 | E36: 36X36 | F36: P143-E3636 | I36: 2x2x6" | J36: KR-6690F2306
I37: 2x2x8" | J37: KR-6690F2308
A38: THERMOSTATS | E38: Wall Brackets | I38: 2x2x10" | J38: KR-6690F2310
A39: ECOBEE 6 | B39: EB-STATE6IBR-01 | E39: MiniSplit Wall Bracket | F39: QKS-QSWB2000 | I39: 2x2x12" | J39: KR-6690F2312
A40: T6 PRO, 2H/1C PROGRAMMABLE | B40: HW-TH6210U2001 | E40: Wall Bracket: | I40: 2x2x14" | J40: KR-6690F2314
A41: BRYANT SMART STAT | B41: TSTATBBEWF-01 | E41: 36" | F41: DV-ACB36
A42: EVOLUTION CONTROL | B42: SYSTXBBECC01-C | E42: 42" | F42: DV-ACB42
A43: EVOLUTION SMART SENSOR | B43: SYSTXZNSMS01 | E43: 48" | F43: DV-ACB48
A44: EVOLUTION ZONE BOARD | B44: SYSTXBB4ZC01 | E44: Minisplit Stand | F44: QKS-QSMA1201
A45: 24V Interface Kit 230v | B45: KSAIC0501230 | E45: 18X38 Pad for Stand | F45: P143-E1838
E185: 2x2 Metal Return Box (for grid celing) | I185: Additional Items
A186: 2x2 Supply Lay-in | E186: 2x2 box (not insulated) | I186: Roll 1/8"steel braided cable
A187: 4" neck | E187: 2x2 box (insulated) | I187: Cable Locks for 1/8" (Clutchers)
A188: 6" neck | E188: 2x2 plastic egg crate | I188: 10’- Unistrut-heavy guage
A189: 7" neck | I189: 1 box 3/8th nuts
A190: 8" neck | I190: 1 box 3/8ths washer
A191: 10" neck | I191: 10’ - 3/8th threaded rod
A192: 12" neck
A194: Radial Dampers for Lay-Ins
A195: PRN1006 - 6"
A196: PRN1008 - 8"
A197: PRN1010 - 10"
A198: PRN1012 - 12"
A199: PRN1014 - 14"

Sheet Labor
C2: Sharif Riggen
C3: =TODAY() -> 2026-07-06
B5: Residential Labor Estimate
B7: For:
B8: Systems on Job: | C8: 1
B9: Rough-In Labor:
C10: Labor
B11: Lower Level Left System:
B12: - Delivery/Cut-Out/Equip. Set/Config. Duct
B13: - Return Ductwork
B14: - Supply Ductwork
B15: - Venting (fans, dryer vent, hood vent)
B16: - Flues and Lineset
B18: =B11 -> Lower Level Left System: | C18: =SUM(C12:C16) -> 0
B20: =IF($C$8*1>=2,"Lower Level Right System:","") -> 
B21: =IF($C$8*1>=2," - Delivery/Cut-Out/Equip. Set/Config. Duct","") -> 
B22: =IF($C$8*1>=2," - Return Ductwork","") -> 
B23: =IF($C$8*1>=2," - Supply Ductwork","") -> 
B24: =IF($C$8*1>=2," - Venting (fans) ","") -> 
B25: =IF($C$8*1>=2," - Flues and Lineset","") -> 
B27: =B20 ->  | C27: =IF($C$8*1>=2,SUM(C21:C25),0) -> 0
B29: =IF($C$8*1>=3,"2nd Floor System:","") -> 
B30: =IF($C$8*1>=3," - Delivery/Cut-Out/Equip. Set/Config. Duct","") -> 
B31: =IF($C$8*1>=3," - Return Ductwork","") -> 
B32: =IF($C$8*1>=3," - Supply Ductwork","") -> 
B33: =IF($C$8*1>=3," - Venting (fans to soffits) ","") -> 
B34: =IF($C$8*1>=3," - Flues and Lineset","") -> 
B36: =B29 ->  | C36: =IF($C$8*1>=3,SUM(C30:C34),0) -> 0
B38: Rough-In Labor: | C38: =SUM(C18+C27+C36) -> 0
B40: Finish Labor:
B42: - Grills/Registers/Fan Covers/Hood Vent
B43: - All low voltage wiring/job cleanup
B44: =CHOOSE($C$8*1," - AC installation"," - AC installation (2 AC’s)"," - AC installation (3 AC’s)") -> - AC installation
B45: - Exterior Caps
B47: Finish Labor: | C47: =SUM(C41:C45) -> 0
B49: Total Job Labor: | C49: =SUM(C47+C38) -> 0
B51: Additional Costs
B52: Fans
B53: Fab Drain Pan
B54: Fab Ductwork/Fittings
B55: Subtotal: | C55: =SUM(C52:C54) -> 0
B56: Total: | C56: =C55*(1+'R Estimate'!J178) -> 0

Sheet R Estimate
C1: New Construction Rough In - Costing Form
C2: PO: | G2: Deliver On:
C3: Notes:
C4: Add following equipment previously purchased to delivery: | F4: Ticket # | G4: Job PO | I4: Model | J4: Serial #
C7: #
A8: Furnace | C8: =IF('Rough In'!B8="","",IFERROR(_xlfn.XLOOKUP('Rough In'!B8,Furnace!$C:$C,Furnace!$I:$I),"")) ->  | E8: Transitional Takeoffs | G8: # | I8: Stick-On Flat 90’s | K8: #
A9: Coil | C9: =IF('Rough In'!B9="","",IFERROR(_xlfn.XLOOKUP('Rough In'!B9,Coil!$C:$C,Coil!$H:$H),"")) ->  | E9: 24x12 | F9: ST-1203-2412 | G9: ='Rough In'!G9*'R Cost'!F8 -> 0 | I9: 8" | J9: ST-306-08 | K9: =IFERROR('Rough In'!K9*_xlfn.XLOOKUP($J9,'R Cost'!$H:$H,'R Cost'!$I:$I),"") -> 0
A10: Air Handler | C10: =IF('Rough In'!B10="","",IFERROR(_xlfn.XLOOKUP('Rough In'!B10,'Air Handler'!$C:$C,'Air Handler'!$J:$J),"")) ->  | E10: 24x10 | F10: ST-1203-2410 | G10: ='Rough In'!G10*'R Cost'!F9 -> 0 | I10: 7" | J10: ST-306-07 | K10: =IFERROR('Rough In'!K10*_xlfn.XLOOKUP($J10,'R Cost'!$H:$H,'R Cost'!$I:$I),"") -> 0
A11: Geothermal | C11: =IF('Rough In'!B11="","",IFERROR(_xlfn.XLOOKUP('Rough In'!B11,Geothermal!$C:$C,Geothermal!$I:$I),"")) ->  | E11: 20x10 | F11: ST-1203-2010 | G11: ='Rough In'!G11*'R Cost'!F10 -> 0 | I11: 6" | J11: ST-306-06 | K11: =IFERROR('Rough In'!K11*_xlfn.XLOOKUP($J11,'R Cost'!$H:$H,'R Cost'!$I:$I),"") -> 0
A12: Heater Pack | C12: =IF('Rough In'!B12="","",IFERROR(_xlfn.XLOOKUP('Rough In'!B12,'Heater Pack'!$C:$C,'Heater Pack'!$F:$F),"")) ->  | E12: 24x8 | F12: ST-1203-2408 | G12: ='Rough In'!G12*'R Cost'!F11 -> 0 | I12: 4" | J12: ST-306-04 | K12: =IFERROR('Rough In'!K12*_xlfn.XLOOKUP($J12,'R Cost'!$H:$H,'R Cost'!$I:$I),"") -> 0
A13: Bottom Box | B13: =_xlfn.LET(_xlpm.furn,B8,_xlpm.ah,B10,_xlpm.fw,IFERROR(_xlfn.XLOOKUP(_xlpm.furn,Furnace!$C:$C,Furnace!$H:$H),""),_xlpm.aw,IFERROR(_xlfn.XLOOKUP(_xlpm.ah,'Air Handler'!$C:$C,'Air Handler'!$F:$F),""),IF(_xlpm.furn<>"",IFERROR(_xlfn.XLOOKUP(_xlpm.fw,Misc!$B$4:$B$7,Misc!$E$4:$E$7),"width not matched"),IF(_xlpm.ah<>"",IFERROR(_xlfn.XLOOKUP(_xlpm.aw,Misc!$B$9:$B$12,Misc!$E$9:$E$12),"width not matched"),""))) ->  | C13: =IF('Rough In'!B13="","",IFERROR(_xlfn.XLOOKUP('Rough In'!B13,Misc!$E:$E,Misc!$F:$F),"")) ->  | E13: 22x8 | F13: ST-1203-2208 | G13: ='Rough In'!G13*'R Cost'!F12 -> 0
A14: Plenum | B14: =_xlfn.LET(_xlpm.coil,B9,_xlpm.furn,B8,_xlpm.ah,B10,_xlpm.cw,IFERROR(_xlfn.XLOOKUP(_xlpm.coil,Coil!$C:$C,Coil!$F:$F),""),_xlpm.fw,IFERROR(_xlfn.XLOOKUP(_xlpm.furn,Furnace!$C:$C,Furnace!$H:$H),""),_xlpm.aw,IFERROR(_xlfn.XLOOKUP(_xlpm.ah,'Air Handler'!$C:$C,'Air Handler'!$F:$F),""),IF(_xlpm.coil<>"",IFERROR(_xlfn.XLOOKUP(_xlpm.cw,Misc!$B$26:$B$29,Misc!$E$26:$E$29),"width not matched"),IF(_xlpm.furn<>"",IFERROR(_xlfn.XLOOKUP(_xlpm.fw,Misc!$B$16:$B$19,Misc!$E$16:$E$19),"width not matched"),IF(_xlpm.ah<>"",IFERROR(_xlfn.XLOOKUP(_xlpm.aw,Misc!$B$21:$B$24,Misc!$E$21:$E$24),"width not matched"),"")))) ->  | C14: =IF('Rough In'!B14="","",IFERROR(_xlfn.XLOOKUP('Rough In'!B14,Misc!$E:$E,Misc!$F:$F),"")) ->  | E14: 20x8 | F14: ST-1203-2008 | G14: ='Rough In'!G14*'R Cost'!F13 -> 0 | I14: Round Pipe (5' Sections) 30GA
A15: Coil Adapter | B15: =_xlfn.LET(_xlpm.furn,B8,_xlpm.coil,B9,_xlpm.fw,IFERROR(_xlfn.XLOOKUP(_xlpm.furn,Furnace!$C:$C,Furnace!$H:$H),""),_xlpm.cw,IFERROR(_xlfn.XLOOKUP(_xlpm.coil,Coil!$C:$C,Coil!$F:$F),""),IF(OR(_xlpm.furn="",_xlpm.coil="",_xlpm.fw="",_xlpm.cw=""),"",IF(_xlpm.fw=_xlpm.cw,"",_xlfn.LET(_xlpm.lo,IF(_xlpm.fw<=_xlpm.cw,_xlpm.fw,_xlpm.cw),_xlpm.hi,IF(_xlpm.fw<=_xlpm.cw,_xlpm.cw,_xlpm.fw),IFERROR(_xlfn.XLOOKUP(1,(Misc!$B$33:$B$45=_xlpm.lo)*(Misc!$C$33:$C$45=_xlpm.hi),Misc!$E$33:$E$45),"no adapter found"))))) ->  | C15: =IF('Rough In'!B15="","",IFERROR(_xlfn.XLOOKUP('Rough In'!B15,Misc!$E:$E,Misc!$F:$F),"")) ->  | E15: 18x8 | F15: ST-1203-1808 | G15: ='Rough In'!G15*'R Cost'!F14 -> 0 | I15: 3" | J15: ST-RDP-053003 | K15: =IF('Rough In'!K15="",0,IFERROR(SUBSTITUTE(SUBSTITUTE('Rough In'!K15,"'",""),"""","")/5*'R Cost'!I14,"")) -> 0
A16: Coil Spacer | B16: =IF(D16<>TRUE,"",_xlfn.LET(_xlpm.furn,B8,_xlpm.coil,B9,_xlpm.fw,IFERROR(_xlfn.XLOOKUP(_xlpm.furn,Furnace!$C:$C,Furnace!$H:$H),""),_xlpm.cw,IFERROR(_xlfn.XLOOKUP(_xlpm.coil,Coil!$C:$C,Coil!$F:$F),""),IF(OR(_xlpm.furn="",_xlpm.coil="",_xlpm.fw="",_xlpm.cw=""),"",IF(_xlpm.fw<>_xlpm.cw,"N/A-widths differ",IFERROR(_xlfn.XLOOKUP(1,(Misc!$B$33:$B$45=_xlpm.fw)*(Misc!$C$33:$C$45=_xlpm.fw),Misc!$E$33:$E$45),"spacer not found"))))) ->  | C16: =IF('Rough In'!B16="","",IFERROR(_xlfn.XLOOKUP('Rough In'!B16,Misc!$E:$E,Misc!$F:$F),"")) ->  | E16: 16x8 | F16: ST-1203-1608 | G16: ='Rough In'!G16*'R Cost'!F15 -> 0 | I16: 4" | J16: ST-RDP-053004 | K16: =IF('Rough In'!K16="",0,IFERROR(SUBSTITUTE(SUBSTITUTE('Rough In'!K16,"'",""),"""","")/5*'R Cost'!I15,"")) -> 0
A17: Bricks | B17: HO-619345 | C17: ='Rough In'!C17*'R Cost'!C15 -> 0 | E17: 14x8 | F17: ST-1203-1408 | G17: ='Rough In'!G17*'R Cost'!F16 -> 0 | I17: 6" | J17: ST-RDP-053006 | K17: =IF('Rough In'!K17="",0,IFERROR(SUBSTITUTE(SUBSTITUTE('Rough In'!K17,"'",""),"""","")/5*'R Cost'!I16,"")) -> 0
A18: Adjustable Pump-Ups | B18: DV-HPR6-2P | C18: ='Rough In'!C18*'R Cost'!C16 -> 0 | E18: 12x8 | F18: ST-1203-1208 | G18: ='Rough In'!G18*'R Cost'!F17 -> 0 | I18: 7" | J18: ST-RDP-053007 | K18: =IF('Rough In'!K18="",0,IFERROR(SUBSTITUTE(SUBSTITUTE('Rough In'!K18,"'",""),"""","")/5*'R Cost'!I17,"")) -> 0
A19: SMALL BYP. HUMIDIFIER | B19: HUMCRSBP2412 | C19: ='Rough In'!C19*'R Cost'!C17 -> 0 | E19: 10x8 | F19: ST-1203-1008 | G19: ='Rough In'!G19*'R Cost'!F18 -> 0 | I19: 8" | J19: ST-RDP-053008 | K19: =IF('Rough In'!K19="",0,IFERROR(SUBSTITUTE(SUBSTITUTE('Rough In'!K19,"'",""),"""","")/5*'R Cost'!I18,"")) -> 0
A20: LARGE BYP. HUMIDIFIER | B20: HUMCRLBP2417 | C20: ='Rough In'!C20*'R Cost'!C18 -> 0 | I20: 10" | J20: ST-RDP-053010 | K20: =IF('Rough In'!K20="",0,IFERROR(SUBSTITUTE(SUBSTITUTE('Rough In'!K20,"'",""),"""","")/5*'R Cost'!I19,"")) -> 0
B21: Equipment Subtotal: | C21: =SUM(C8:C20) -> 0 | E21: Duct - 5' Sections | I21: 12" | J21: ST-RDP-053012 | K21: =IF('Rough In'!K21="",0,IFERROR(SUBSTITUTE(SUBSTITUTE('Rough In'!K21,"'",""),"""","")/5*'R Cost'!I20,"")) -> 0
E22: 25x10 | F22: ST-DT-602510 | G22: =IF('Rough In'!G22="",0,IFERROR(SUBSTITUTE(SUBSTITUTE('Rough In'!G22,"'",""),"""","")/5*'R Cost'!F22,"")) -> 0 | I22: 14" | J22: ST-RDP-052614 | K22: =IF('Rough In'!K22="",0,IFERROR(SUBSTITUTE(SUBSTITUTE('Rough In'!K22,"'",""),"""","")/5*'R Cost'!I21,"")) -> 0
E23: 24x12 | F23: ST-DT-602412 | G23: =IF('Rough In'!G23="",0,IFERROR(SUBSTITUTE(SUBSTITUTE('Rough In'!G23,"'",""),"""","")/5*'R Cost'!F23,"")) -> 0 | I23: 16" | J23: ST-RDP-052616 | K23: =IF('Rough In'!K23="",0,IFERROR(SUBSTITUTE(SUBSTITUTE('Rough In'!K23,"'",""),"""","")/5*'R Cost'!I22,"")) -> 0
A24: Media Cabinets | E24: 24x10 | F24: ST-DT-602410 | G24: =IF('Rough In'!G24="",0,IFERROR(SUBSTITUTE(SUBSTITUTE('Rough In'!G24,"'",""),"""","")/5*'R Cost'!F24,"")) -> 0
A25: Core Media Cabinet - 16X25 | B25: EZXCABCR1016 | C25: ='Rough In'!C23*'R Cost'!C21 -> 0 | E25: 20x10 | F25: ST-DT-602010 | G25: =IF('Rough In'!G25="",0,IFERROR(SUBSTITUTE(SUBSTITUTE('Rough In'!G25,"'",""),"""","")/5*'R Cost'!F25,"")) -> 0 | I25: Boot Frames
A26: Core Media Cabinet - 20X25 | B26: EZXCABCR1320 | C26: ='Rough In'!C24*'R Cost'!C22 -> 0 | E26: 24x8 | F26: ST-DT-602408 | G26: =IF('Rough In'!G26="",0,IFERROR(SUBSTITUTE(SUBSTITUTE('Rough In'!G26,"'",""),"""","")/5*'R Cost'!F26,"")) -> 0 | I26: H-4 Boot Frame | J26: PT-H4 | K26: =IFERROR('Rough In'!K26*_xlfn.XLOOKUP($J26,'R Cost'!$H:$H,'R Cost'!$I:$I),"") -> 0
A27: Media Cabinet - 24X25 | B27: FILCABXL0024 | C27: ='Rough In'!C25*'R Cost'!C23 -> 0 | E27: 22x8 | F27: ST-DT-602208 | G27: =IF('Rough In'!G27="",0,IFERROR(SUBSTITUTE(SUBSTITUTE('Rough In'!G27,"'",""),"""","")/5*'R Cost'!F27,"")) -> 0 | I27: H-6 Boot Frame | J27: PT-H6 | K27: =IFERROR('Rough In'!K27*_xlfn.XLOOKUP($J27,'R Cost'!$H:$H,'R Cost'!$I:$I),"") -> 0
A28: Honeywell Media Cab 16x20 | B28: HW-F100F1620 | C28: ='Rough In'!C26*'R Cost'!C24 -> 0 | E28: 20x8 | F28: ST-DT-602008 | G28: =IF('Rough In'!G28="",0,IFERROR(SUBSTITUTE(SUBSTITUTE('Rough In'!G28,"'",""),"""","")/5*'R Cost'!F28,"")) -> 0
A29: Honeywell Media Cab 20x20 | B29: HW-F100F2020 | C29: ='Rough In'!C27*'R Cost'!C25 -> 0 | E29: 18x8 | F29: ST-DT-601808 | G29: =IF('Rough In'!G29="",0,IFERROR(SUBSTITUTE(SUBSTITUTE('Rough In'!G29,"'",""),"""","")/5*'R Cost'!F29,"")) -> 0 | I29: Boots
A30: Honeywell Media Cab 20x25 | B30: HW-F100F2025 | C30: ='Rough In'!C28*'R Cost'!C26 -> 0 | E30: 16x8 | F30: ST-DT-601608 | G30: =IF('Rough In'!G30="",0,IFERROR(SUBSTITUTE(SUBSTITUTE('Rough In'!G30,"'",""),"""","")/5*'R Cost'!F30,"")) -> 0 | I30: 4x10x4 end boot | J30: ST-1373-041004 | K30: =IFERROR('Rough In'!K30*_xlfn.XLOOKUP($J30,'R Cost'!$H:$H,'R Cost'!$I:$I),"") -> 0
E31: 14x8 | F31: ST-DT-601408 | G31: =IF('Rough In'!G31="",0,IFERROR(SUBSTITUTE(SUBSTITUTE('Rough In'!G31,"'",""),"""","")/5*'R Cost'!F31,"")) -> 0 | I31: 4x10x4 L boot | J31: ST-1374-041004 | K31: =IFERROR('Rough In'!K31*_xlfn.XLOOKUP($J31,'R Cost'!$H:$H,'R Cost'!$I:$I),"") -> 0
A32: Standard Items | E32: 12x8 | F32: ST-DT-601208 | G32: =IF('Rough In'!G32="",0,IFERROR(SUBSTITUTE(SUBSTITUTE('Rough In'!G32,"'",""),"""","")/5*'R Cost'!F32,"")) -> 0 | I32: 4x10x4 straight boot | J32: ST-1370-041004 | K32: =IFERROR('Rough In'!K32*_xlfn.XLOOKUP($J32,'R Cost'!$H:$H,'R Cost'!$I:$I),"") -> 0
A33: Tub 3/4" screws | B33: MA-HW8X3/4ZT | C33: ='Rough In'!C31*'R Cost'!C29 -> 41.14 | E33: 10x8 | F33: ST-DT-601008 | G33: =IF('Rough In'!G33="",0,IFERROR(SUBSTITUTE(SUBSTITUTE('Rough In'!G33,"'",""),"""","")/5*'R Cost'!F33,"")) -> 0 | I33: 4x10x6 L boot | J33: ST-1374-041006 | K33: =IFERROR('Rough In'!K33*_xlfn.XLOOKUP($J33,'R Cost'!$H:$H,'R Cost'!$I:$I),"") -> 0
A34: Tub 1/2" screws | B34: MA-HW8X1/2ZT | C34: ='Rough In'!C32*'R Cost'!C30 -> 31.64 | E34: 8x8 | F34: ST-DT-600808 | G34: =IF('Rough In'!G34="",0,IFERROR(SUBSTITUTE(SUBSTITUTE('Rough In'!G34,"'",""),"""","")/5*'R Cost'!F34,"")) -> 0 | I34: 4x10x6 end boot | J34: ST-1373-041006 | K34: =IFERROR('Rough In'!K34*_xlfn.XLOOKUP($J34,'R Cost'!$H:$H,'R Cost'!$I:$I),"") -> 0
A35: Basset Hangers | B35: BP-A125 | C35: ='Rough In'!C33*'R Cost'!C31 -> 0 | I35: 4x10x6 straight boot | J35: ST-1370-041006 | K35: =IFERROR('Rough In'!K35*_xlfn.XLOOKUP($J35,'R Cost'!$H:$H,'R Cost'!$I:$I),"") -> 0
A36: 5' Drives | B36: ST-213-60 | C36: ='Rough In'!C34*'R Cost'!C32 -> 0 | E36: End Caps | I36: 4x12x6 end boot | J36: ST-1373-041206 | K36: =IFERROR('Rough In'!K36*_xlfn.XLOOKUP($J36,'R Cost'!$H:$H,'R Cost'!$I:$I),"") -> 0
A37: 5' S-Locks | B37: ST-209-60 | C37: ='Rough In'!C35*'R Cost'!C33 -> 0 | E37: 25x12 | F37: ST-1210-3012 | G37: ='Rough In'!G37*'R Cost'!F37 -> 0 | I37: 4x12x6 L boot | J37: ST-1374-041206 | K37: =IFERROR('Rough In'!K37*_xlfn.XLOOKUP($J37,'R Cost'!$H:$H,'R Cost'!$I:$I),"") -> 0
A38: Rolls of 3" tape | B38: DT-322F3 | C38: ='Rough In'!C36*'R Cost'!C34 -> 0 | E38: 24x12 | F38: ST-1210-2412 | G38: ='Rough In'!G38*'R Cost'!F38 -> 0 | I38: 4x12x6 straight boot | J38: ST-1370-041206 | K38: =IFERROR('Rough In'!K38*_xlfn.XLOOKUP($J38,'R Cost'!$H:$H,'R Cost'!$I:$I),"") -> 0
A39: Rolls of mastic tape | B39: AFG-1404-181 | C39: ='Rough In'!C37*'R Cost'!C35 -> 0 | E39: 24x10 | F39: ST-1210-2410 | G39: ='Rough In'!G39*'R Cost'!F39 -> 0 | I39: 4x12x7 L boot | J39: ST-1374-041207 | K39: =IFERROR('Rough In'!K39*_xlfn.XLOOKUP($J39,'R Cost'!$H:$H,'R Cost'!$I:$I),"") -> 0
A40: Duct Sealant Gallon Pail | B40: HF-SDSWB | C40: ='Rough In'!C38*'R Cost'!C36 -> 0 | E40: 20x10 | F40: ST-1210-2010 | G40: ='Rough In'!G40*'R Cost'!F40 -> 0 | I40: 4x12x7 straight boot | J40: ST-1370-041207 | K40: =IFERROR('Rough In'!K40*_xlfn.XLOOKUP($J40,'R Cost'!$H:$H,'R Cost'!$I:$I),"") -> 0
A41: 2" brushes | B41: DV-B503 | C41: ='Rough In'!C39*'R Cost'!C37 -> 0 | E41: 24x8 | F41: ST-1210-2408 | G41: ='Rough In'!G41*'R Cost'!F41 -> 0 | I41: 4x12x7 end boot | J41: ST-1373-041207 | K41: =IFERROR('Rough In'!K41*_xlfn.XLOOKUP($J41,'R Cost'!$H:$H,'R Cost'!$I:$I),"") -> 0
A42: Tubes of Clear Silicone | B42: BO-370C | C42: ='Rough In'!C40*'R Cost'!C38 -> 0 | E42: 22x8 | F42: ST-1210-2208 | G42: ='Rough In'!G42*'R Cost'!F42 -> 0 | I42: 6x10x7 end-boot | J42: ST-1373-061007 | K42: =IFERROR('Rough In'!K42*_xlfn.XLOOKUP($J42,'R Cost'!$H:$H,'R Cost'!$I:$I),"") -> 0
A43: 10" Section - 3/4" PVC | B43: BR-6106 | C43: =('Rough In'!C41*10)*'R Cost'!C39 -> 101 | E43: 20x8 | F43: ST-1210-2008 | G43: ='Rough In'!G43*'R Cost'!F43 -> 0 | I43: 6x10x7 L boot | J43: ST-1374-061007 | K43: =IFERROR('Rough In'!K43*_xlfn.XLOOKUP($J43,'R Cost'!$H:$H,'R Cost'!$I:$I),"") -> 0
A44: EZ-Trap Clear PVC Trap | B44: RC-83114 | C44: ='Rough In'!C42*'R Cost'!C40 -> 0 | E44: 18x8 | F44: ST-1210-1808 | G44: ='Rough In'!G44*'R Cost'!F44 -> 0 | I44: 6x10x7 straight boot | J44: ST-1370-061007 | K44: =IFERROR('Rough In'!K44*_xlfn.XLOOKUP($J44,'R Cost'!$H:$H,'R Cost'!$I:$I),"") -> 0
A45: 3/4" PVC threaded male | B45: BR-0342 | C45: ='Rough In'!C43*'R Cost'!C41 -> 0.51 | E45: 16x8 | F45: ST-1210-1608 | G45: ='Rough In'!G45*'R Cost'!F45 -> 0 | I45: 6x12x7 end boot | J45: ST-1373-061207 | K45: =IFERROR('Rough In'!K45*_xlfn.XLOOKUP($J45,'R Cost'!$H:$H,'R Cost'!$I:$I),"") -> 0
A46: 3/4" PVC threaded female | B46: BR-0341 | C46: ='Rough In'!C44*'R Cost'!C42 -> 0 | E46: 14x8 | F46: ST-1210-1408 | G46: ='Rough In'!G46*'R Cost'!F46 -> 0 | I46: 6x12x7 L boot | J46: ST-1374-061207 | K46: =IFERROR('Rough In'!K46*_xlfn.XLOOKUP($J46,'R Cost'!$H:$H,'R Cost'!$I:$I),"") -> 0
A47: 3/4" PVC 90's | B47: BR-0344 | C47: ='Rough In'!C45*'R Cost'!C43 -> 3.36 | E47: 12x8 | F47: ST-1210-1208 | G47: ='Rough In'!G47*'R Cost'!F47 -> 0 | I47: 6x12x7 straight boot | J47: ST-1370-061207 | K47: =IFERROR('Rough In'!K47*_xlfn.XLOOKUP($J47,'R Cost'!$H:$H,'R Cost'!$I:$I),"") -> 0
A48: 3/4" PVC T's | B48: BR-0349 | C48: ='Rough In'!C46*'R Cost'!C44 -> 1.42 | E48: 10x8 | F48: ST-1210-1008 | G48: ='Rough In'!G48*'R Cost'!F48 -> 0 | I48: 6x12x8 straight boot | J48: ST-1370-061208 | K48: =IFERROR('Rough In'!K48*_xlfn.XLOOKUP($J48,'R Cost'!$H:$H,'R Cost'!$I:$I),"") -> 0
A49: 3/4" PVC 45’s | B49: BR-0346 | C49: ='Rough In'!C47*'R Cost'!C45 -> 5.16 | E49: 8x8 | F49: ST-1210-0808 | G49: ='Rough In'!G49*'R Cost'!F49 -> 0 | I49: 6x12x8 end boot | J49: ST-1373-061208 | K49: =IFERROR('Rough In'!K49*_xlfn.XLOOKUP($J49,'R Cost'!$H:$H,'R Cost'!$I:$I),"") -> 0
A50: Glue | B50: DV-510 | C50: ='Rough In'!C48*'R Cost'!C46 -> 14.72 | I50: 6x12x8 L boot | J50: ST-1374-061208 | K50: =IFERROR('Rough In'!K50*_xlfn.XLOOKUP($J50,'R Cost'!$H:$H,'R Cost'!$I:$I),"") -> 0
A51: Cleaner | B51: DV-PPC16 | C51: ='Rough In'!C49*'R Cost'!C47 -> 14.23 | E51: Supply Duct Reducers | I51: 6x14x8 L Boot | J51: ST-1374-061408 | K51: =IFERROR('Rough In'!K51*_xlfn.XLOOKUP($J51,'R Cost'!$H:$H,'R Cost'!$I:$I),"") -> 0
A52: Rubber 3"x3" pads | B52: DV-MP3E | C52: ='Rough In'!C50*'R Cost'!C48 -> 11.45 | E52: 2" reducer for 8" duct | F52: ST-187-02 | G52: ='Rough In'!G52*'R Cost'!F52 -> 0 | I52: 6x14x8 Straight Boot | J52: ST-1370-061408 | K52: =IFERROR('Rough In'!K52*_xlfn.XLOOKUP($J52,'R Cost'!$H:$H,'R Cost'!$I:$I),"") -> 0
A53: Bag 36" Panduits | B53: DV-7P36 | C53: ='Rough In'!C51*'R Cost'!C49 -> 0 | E53: 4" reducer for 8" duct | F53: ST-187-04 | G53: ='Rough In'!G53*'R Cost'!F53 -> 0 | I53: 6X14X6 end boot | J53: ST-1373-061408 | K53: =IFERROR('Rough In'!K53*_xlfn.XLOOKUP($J53,'R Cost'!$H:$H,'R Cost'!$I:$I),"") -> 0
A54: Foil Back Fiberglass-2" 75' | B54: KF-E24875FSKLKDW | C54: ='Rough In'!C52*'R Cost'!C50 -> 0 | E54: 6" reducer for 8" duct | F54: ST-187-06 | G54: ='Rough In'!G54*'R Cost'!F54 -> 0
A55: Lineset Clips - Reg. Size | B55: TP-41125 (5 PER PACK) | C55: ='Rough In'!C53*'R Cost'!C51 -> 6.9 | E55: 8" reducer for 8" duct | F55: ST-187-08 | G55: ='Rough In'!G55*'R Cost'!F55 -> 0 | I55: Oval (100" sections)
A56: Roll of 3" Webbing | B56: DV-710102 | C56: ='Rough In'!C54*'R Cost'!C52 -> 0 | E56: 24x12 to 24x10 reduc. | F56: ST-1251-24122410 | G56: ='Rough In'!G56*'R Cost'!F56 -> 0 | I56: 6" | J56: ST-4100-10006 | K56: =IFERROR('Rough In'!K56*_xlfn.XLOOKUP($J56,'R Cost'!$H:$H,'R Cost'!$I:$I),"") -> 0
A57: Aquaguard Float Switch | B57: AG-1200 | C57: ='Rough In'!C55*'R Cost'!C53 -> 0 | E57: 24x10 to 24x8 reduc. | F57: ST-1251-24102408 | G57: ='Rough In'!G57*'R Cost'!F57 -> 0 | I57: 7" | J57: ST-4100-10007 | K57: =IFERROR('Rough In'!K57*_xlfn.XLOOKUP($J57,'R Cost'!$H:$H,'R Cost'!$I:$I),"") -> 0
I58: 8" | J58: ST-4100-10008 | K58: =IFERROR('Rough In'!K58*_xlfn.XLOOKUP($J58,'R Cost'!$H:$H,'R Cost'!$I:$I),"") -> 0
A59: Temp Filters - Pleated 1" | E59: Round Reducers
A60: 16x25x1 temp filter | B60: FI-16X25X1 | C60: ='Rough In'!C58*'R Cost'!C56 -> 0 | E60: 4"-3" | F60: ST-133-040326 | G60: ='Rough In'!G60*'R Cost'!F60 -> 0 | I60: Oval to Round L-Boot
A61: 20x25x1 temp filter | B61: FI-20X25X1 | C61: =IFERROR('Rough In'!C59*_xlfn.XLOOKUP($B61,'R Cost'!$B:$B,'R Cost'!$C:$C),"") -> 0 | E61: 6"-4" | F61: ST-133-060426 | G61: ='Rough In'!G61*'R Cost'!F61 -> 0 | I61: 6" oval to round L-Boot | J61: ST-4244NC-06 | K61: =IFERROR('Rough In'!K61*_xlfn.XLOOKUP($J61,'R Cost'!$H:$H,'R Cost'!$I:$I),"") -> 0
A62: 24x25x1 temp filter | B62: FI-24X25X1 | C62: =IFERROR(N('Rough In'!C60)*_xlfn.XLOOKUP($B62,'R Cost'!$B:$B,'R Cost'!$C:$C),"") -> 0 | E62: 8"-6" | F62: ST-133-080626 | G62: ='Rough In'!G62*'R Cost'!F62 -> 0 | I62: 7" oval to round L-Boot | J62: ST-4244NC-07 | K62: =IFERROR('Rough In'!K62*_xlfn.XLOOKUP($J62,'R Cost'!$H:$H,'R Cost'!$I:$I),"") -> 0
A63: 16x20x1 temp filter | B63: FI-16X20X1 | C63: =IFERROR(N('Rough In'!C61)*_xlfn.XLOOKUP($B63,'R Cost'!$B:$B,'R Cost'!$C:$C),"") -> 0 | E63: 10"-8" | F63: ST-133-100826 | G63: ='Rough In'!G63*'R Cost'!F63 -> 0 | I63: 8" oval to round L-Boot | J63: ST-4244NC-08 | K63: =IFERROR('Rough In'!K63*_xlfn.XLOOKUP($J63,'R Cost'!$H:$H,'R Cost'!$I:$I),"") -> 0
A64: 20x20x1 temp filter | B64: FI-20X20X1 | C64: =IFERROR(N('Rough In'!C62)*_xlfn.XLOOKUP($B64,'R Cost'!$B:$B,'R Cost'!$C:$C),"") -> 0 | E64: 12"-10" | F64: ST-133-121026 | G64: ='Rough In'!G64*'R Cost'!F64 -> 0
E65: 14"-10" | F65: ST-133-141026 | G65: ='Rough In'!G65*'R Cost'!F65 -> 0 | I65: Oval to Round End Boot
A66: Drywall Edging | E66: 14"-12" | F66: ST-133-141226 | G66: ='Rough In'!G66*'R Cost'!F66 -> 0 | I66: 6" oval-round end boot | J66: ST-4247NC-0606 | K66: =IFERROR('Rough In'!K66*_xlfn.XLOOKUP($J66,'R Cost'!$H:$H,'R Cost'!$I:$I),"") -> 0
A67: 5' sections | B67: ST-210-60 | C67: =IF('Rough In'!C65="",0,IFERROR(SUBSTITUTE(SUBSTITUTE('Rough In'!C65,"'",""),"""","")/5*_xlfn.XLOOKUP($B67,'R Cost'!$B:$B,'R Cost'!$C:$C),"")) -> 0 | E67: 16"-12" | F67: ST-133-161226 | G67: ='Rough In'!G67*'R Cost'!F67 -> 0 | I67: 7" oval-round end boot | J67: ST-4247NC-0707 | K67: =IFERROR('Rough In'!K67*_xlfn.XLOOKUP($J67,'R Cost'!$H:$H,'R Cost'!$I:$I),"") -> 0
E68: 16"-14" | F68: ST-133-161426 | G68: ='Rough In'!G68*'R Cost'!F68 -> 0 | I68: 8" oval-round end boot | J68: ST-4247NC-0808 | K68: =IFERROR('Rough In'!K68*_xlfn.XLOOKUP($J68,'R Cost'!$H:$H,'R Cost'!$I:$I),"") -> 0
A69: Duct Fittings
A70: 10x8 SW 90 | B70: ST-1240-1008 | C70: =IFERROR('Rough In'!C68*_xlfn.XLOOKUP($B70,'R Cost'!$B:$B,'R Cost'!$C:$C),"") -> 0 | E70: Y's | I70: Oval-Round Straight Boot
A71: 10x8 BW 90 | B71: ST-1246-1008 | C71: =IFERROR('Rough In'!C69*_xlfn.XLOOKUP($B71,'R Cost'!$B:$B,'R Cost'!$C:$C),"") -> 0 | E71: 6X4X4 WITH REDUCER | F71: ST-324-060404 | G71: ='Rough In'!G71*'R Cost'!F71 -> 0 | I71: 6" oval-round straight boot | J71: ST-4248NC-0606 | K71: =IFERROR('Rough In'!K71*_xlfn.XLOOKUP($J71,'R Cost'!$H:$H,'R Cost'!$I:$I),"") -> 0
A72: 12x8 SW 90 | B72: ST-1240-1208 | C72: =IFERROR('Rough In'!C70*_xlfn.XLOOKUP($B72,'R Cost'!$B:$B,'R Cost'!$C:$C),"") -> 0 | E72: 7x5x3 WITH REDUCER | F72: ST-324-070503 | G72: ='Rough In'!G72*'R Cost'!F72 -> 0 | I72: 7" oval-round straight boot | J72: ST-4248NC-0707 | K72: =IFERROR('Rough In'!K72*_xlfn.XLOOKUP($J72,'R Cost'!$H:$H,'R Cost'!$I:$I),"") -> 0
A73: 12x8 BW 90 | B73: ST-1246-1208 | C73: =IFERROR('Rough In'!C71*_xlfn.XLOOKUP($B73,'R Cost'!$B:$B,'R Cost'!$C:$C),"") -> 0 | E73: 8X7X6 WITH REDUCER | F73: ST-324-080706 | G73: ='Rough In'!G73*'R Cost'!F73 -> 0 | I73: 8" oval-round straight boot | J73: ST-4248NC-0808 | K73: =IFERROR('Rough In'!K73*_xlfn.XLOOKUP($J73,'R Cost'!$H:$H,'R Cost'!$I:$I),"") -> 0
A74: 14x8 SW 90 | B74: ST-1240-1408 | C74: =IFERROR('Rough In'!C72*_xlfn.XLOOKUP($B74,'R Cost'!$B:$B,'R Cost'!$C:$C),"") -> 0
A75: 14x8 BW 90 | B75: ST-1246-1408 | C75: =IFERROR('Rough In'!C73*_xlfn.XLOOKUP($B75,'R Cost'!$B:$B,'R Cost'!$C:$C),"") -> 0 | E75: T's | I75: Oval Stackhead w/wings
A76: 16x8 SW 90 | B76: ST-1240-1608 | C76: =IFERROR('Rough In'!C74*_xlfn.XLOOKUP($B76,'R Cost'!$B:$B,'R Cost'!$C:$C),"") -> 0 | E76: 4x4x4 | F76: ST-219-040404 | G76: ='Rough In'!G76*'R Cost'!F76 -> 0 | I76: 6" oval stack head w/4x10 | J76: ST-4235-0941006 | K76: =IFERROR('Rough In'!K76*_xlfn.XLOOKUP($J76,'R Cost'!$H:$H,'R Cost'!$I:$I),"") -> 0
A77: 16x8 BW 90 | B77: ST-1246-1608 | C77: =IFERROR('Rough In'!C75*_xlfn.XLOOKUP($B77,'R Cost'!$B:$B,'R Cost'!$C:$C),"") -> 0 | E77: 6x4x4W/reducers | F77: ST-219-060606 | G77: ='Rough In'!G77*'R Cost'!F77 -> 0 | I77: 7” oval stackhead w/4x12 | J77: ST-4235-0941207 | K77: =IFERROR('Rough In'!K77*_xlfn.XLOOKUP($J77,'R Cost'!$H:$H,'R Cost'!$I:$I),"") -> 0
A78: 18x8 SW 90 | B78: ST-1240-1808 | C78: =IFERROR('Rough In'!C76*_xlfn.XLOOKUP($B78,'R Cost'!$B:$B,'R Cost'!$C:$C),"") -> 0 | E78: 6x6x6 | F78: ST-219-060606 | G78: ='Rough In'!G78*'R Cost'!F78 -> 0 | I78: 7” oval stackhead w/6x12 | J78: ST-4235-0961207 | K78: =IFERROR('Rough In'!K78*_xlfn.XLOOKUP($J78,'R Cost'!$H:$H,'R Cost'!$I:$I),"") -> 0
A79: 18x8 BW 90 | B79: ST-1246-1808 | C79: =IFERROR('Rough In'!C77*_xlfn.XLOOKUP($B79,'R Cost'!$B:$B,'R Cost'!$C:$C),"") -> 0 | E79: 7x7x7 | F79: ST-219-070707 | G79: ='Rough In'!G79*'R Cost'!F79 -> 0 | I79: 8" oval stackhead w/6x14 | J79: ST-4235-0961408 | K79: =IFERROR('Rough In'!K79*_xlfn.XLOOKUP($J79,'R Cost'!$H:$H,'R Cost'!$I:$I),"") -> 0
A80: 20x8 SW 90 | B80: ST-1240-2008 | C80: =IFERROR('Rough In'!C78*_xlfn.XLOOKUP($B80,'R Cost'!$B:$B,'R Cost'!$C:$C),"") -> 0 | E80: 18x16x16 W/reducers | F80: ST-219-080808 | G80: ='Rough In'!G80*'R Cost'!F80 -> 0
A81: 20x8 BW 90 | B81: ST-1246-2008 | C81: =IFERROR('Rough In'!C79*_xlfn.XLOOKUP($B81,'R Cost'!$B:$B,'R Cost'!$C:$C),"") -> 0 | I81: Stack (100" sections)
A82: 22x8 SW 90 | B82: ST-1240-2208 | C82: =IFERROR('Rough In'!C80*_xlfn.XLOOKUP($B82,'R Cost'!$B:$B,'R Cost'!$C:$C),"") -> 0 | E82: Short Collars w/Crimp | I82: 3.25x10 | J82: ST-WSBL-1000310 | K82: =IFERROR('Rough In'!K82*_xlfn.XLOOKUP($J82,'R Cost'!$H:$H,'R Cost'!$I:$I),"") -> 0
A83: 22x8 BW 90 | B83: ST-1246-2208 | C83: =IFERROR('Rough In'!C81*_xlfn.XLOOKUP($B83,'R Cost'!$B:$B,'R Cost'!$C:$C),"") -> 0 | E83: 4" | F83: ST-172-04 | G83: ='Rough In'!G83*'R Cost'!F83 -> 0 | I83: 3.25x12 | J83: ST-WSBL-1000312 | K83: =IFERROR('Rough In'!K83*_xlfn.XLOOKUP($J83,'R Cost'!$H:$H,'R Cost'!$I:$I),"") -> 0
A84: 24x8 SW 90 | B84: ST-1240-2408 | C84: =IFERROR('Rough In'!C82*_xlfn.XLOOKUP($B84,'R Cost'!$B:$B,'R Cost'!$C:$C),"") -> 0 | E84: 6" | F84: ST-172-06 | G84: ='Rough In'!G84*'R Cost'!F84 -> 0 | I84: 3.25x14 | J84: ST-WSBL-1000314 | K84: =IFERROR('Rough In'!K84*_xlfn.XLOOKUP($J84,'R Cost'!$H:$H,'R Cost'!$I:$I),"") -> 0
A85: 24x8 BW 90 | B85: ST-1246-2408 | C85: =IFERROR('Rough In'!C83*_xlfn.XLOOKUP($B85,'R Cost'!$B:$B,'R Cost'!$C:$C),"") -> 0 | E85: 7" | F85: ST-172-07 | G85: ='Rough In'!G85*'R Cost'!F85 -> 0
A86: 24x10 SW 90 | B86: ST-1240-2410 | C86: =IFERROR('Rough In'!C84*_xlfn.XLOOKUP($B86,'R Cost'!$B:$B,'R Cost'!$C:$C),"") -> 0 | E86: 8" | F86: ST-172-08 | G86: ='Rough In'!G86*'R Cost'!F86 -> 0 | I86: Stack to Round L-Boot
A87: 24x10 BW 90 | B87: ST-1246-2410 | C87: =IFERROR('Rough In'!C85*_xlfn.XLOOKUP($B87,'R Cost'!$B:$B,'R Cost'!$C:$C),"") -> 0 | E87: 10" | F87: ST-172-10 | G87: ='Rough In'!G87*'R Cost'!F87 -> 0 | I87: 3x10x6 | J87: ST-1218-031006 | K87: =IFERROR('Rough In'!K87*_xlfn.XLOOKUP($J87,'R Cost'!$H:$H,'R Cost'!$I:$I),"") -> 0
E88: 12" | F88: ST-172-12 | G88: ='Rough In'!G88*'R Cost'!F88 -> 0 | I88: 3x10x7 | J88: ST-1218-031007 | K88: =IFERROR('Rough In'!K88*_xlfn.XLOOKUP($J88,'R Cost'!$H:$H,'R Cost'!$I:$I),"") -> 0
A89: End Caps | E89: 14" | F89: ST-172-14 | G89: ='Rough In'!G89*'R Cost'!F89 -> 0 | I89: 3x12x7 | J89: ST-1218-031207 | K89: =IFERROR('Rough In'!K89*_xlfn.XLOOKUP($J89,'R Cost'!$H:$H,'R Cost'!$I:$I),"") -> 0
A90: 6" | B90: ST-152-06 | C90: =IFERROR('Rough In'!C88*_xlfn.XLOOKUP($B90,'R Cost'!$B:$B,'R Cost'!$C:$C),"") -> 0 | E90: 16" | F90: ST-172-16 | G90: ='Rough In'!G90*'R Cost'!F90 -> 0 | I90: 3x12x8 | J90: ST-1218-031208 | K90: =IFERROR('Rough In'!K90*_xlfn.XLOOKUP($J90,'R Cost'!$H:$H,'R Cost'!$I:$I),"") -> 0
A91: 7" | B91: ST-152-07 | C91: =IFERROR('Rough In'!C89*_xlfn.XLOOKUP($B91,'R Cost'!$B:$B,'R Cost'!$C:$C),"") -> 0 | I91: 3X14X8 | J91: ST-1218-031408 | K91: =IFERROR('Rough In'!K91*_xlfn.XLOOKUP($J91,'R Cost'!$H:$H,'R Cost'!$I:$I),"") -> 0
A92: 8" | B92: ST-152-08 | C92: =IFERROR('Rough In'!C90*_xlfn.XLOOKUP($B92,'R Cost'!$B:$B,'R Cost'!$C:$C),"") -> 0 | E92: Short Collars - No Crimp
A93: 10" | B93: ST-152-10 | C93: =IFERROR('Rough In'!C91*_xlfn.XLOOKUP($B93,'R Cost'!$B:$B,'R Cost'!$C:$C),"") -> 0 | E93: 4" | F93: ST-171-04 | G93: ='Rough In'!G93*'R Cost'!F93 -> 0 | I93: Stack to Round End Boots
A94: 12" | B94: ST-152-12 | C94: =IFERROR('Rough In'!C92*_xlfn.XLOOKUP($B94,'R Cost'!$B:$B,'R Cost'!$C:$C),"") -> 0 | E94: 6" | F94: ST-171-06 | G94: ='Rough In'!G94*'R Cost'!F94 -> 0 | I94: 3x10x6 | J94: ST-1219-031006 | K94: =IFERROR('Rough In'!K94*_xlfn.XLOOKUP($J94,'R Cost'!$H:$H,'R Cost'!$I:$I),"") -> 0
A95: 14" | B95: ST-152-14 | C95: =IFERROR('Rough In'!C93*_xlfn.XLOOKUP($B95,'R Cost'!$B:$B,'R Cost'!$C:$C),"") -> 0 | E95: 7" | F95: ST-171-07 | G95: ='Rough In'!G95*'R Cost'!F95 -> 0 | I95: 3X12X6 | J95: ST-1219-031206 | K95: =IFERROR('Rough In'!K95*_xlfn.XLOOKUP($J95,'R Cost'!$H:$H,'R Cost'!$I:$I),"") -> 0
A96: 16" | B96: ST-152-16 | C96: =IFERROR('Rough In'!C94*_xlfn.XLOOKUP($B96,'R Cost'!$B:$B,'R Cost'!$C:$C),"") -> 0 | E96: 8" | F96: ST-171-08 | G96: ='Rough In'!G96*'R Cost'!F96 -> 0 | I96: 3x12x7 | J96: ST-1219-031207 | K96: =IFERROR('Rough In'!K96*_xlfn.XLOOKUP($J96,'R Cost'!$H:$H,'R Cost'!$I:$I),"") -> 0
E97: 10" | F97: ST-171-10 | G97: ='Rough In'!G97*'R Cost'!F97 -> 0 | I97: 3X14X7 | J97: ST-1219-031407 | K97: =IFERROR('Rough In'!K97*_xlfn.XLOOKUP($J97,'R Cost'!$H:$H,'R Cost'!$I:$I),"") -> 0
A98: Fans(Include Finish Kit w/order) | E98: 12" | F98: ST-171-12 | G98: ='Rough In'!G98*'R Cost'!F98 -> 0
A99: 50 CFM Fan | B99: BF-1667EH | C99: =IFERROR('Rough In'!C97*_xlfn.XLOOKUP($B99,'R Cost'!$B:$B,'R Cost'!$C:$C),"") -> 0 | E99: 14" | F99: ST-171-14 | G99: ='Rough In'!G99*'R Cost'!F99 -> 0 | I99: Stack to Round Straight Boots
A100: 50 CFM Fan | B100: BF-2677H/2678F | C100: =IFERROR('Rough In'!C98*_xlfn.XLOOKUP($B100,'R Cost'!$B:$B,'R Cost'!$C:$C),"") -> 0 | I100: 3x10x6 | J100: ST-1214-031006 | K100: =IFERROR('Rough In'!K100*_xlfn.XLOOKUP($J100,'R Cost'!$H:$H,'R Cost'!$I:$I),"") -> 0
A101: 50 CFM LIGHT | B101: BF-2678f | C101: =IFERROR('Rough In'!C99*_xlfn.XLOOKUP($B101,'R Cost'!$B:$B,'R Cost'!$C:$C),"") -> 0 | E101: PVC | I101: 3x10x7 | J101: ST-1214-031007 | K101: =IFERROR('Rough In'!K101*_xlfn.XLOOKUP($J101,'R Cost'!$H:$H,'R Cost'!$I:$I),"") -> 0
A102: 80 CFM Fan | B102: BF-AE80B | C102: =IFERROR('Rough In'!C100*_xlfn.XLOOKUP($B102,'R Cost'!$B:$B,'R Cost'!$C:$C),"") -> 0 | E102: 2" PVC - 10' Sections | F102: BR-6082 | G102: =IF('Rough In'!G102="",0,IFERROR(SUBSTITUTE(SUBSTITUTE('Rough In'!G102,"'",""),"""","")*'R Cost'!F102,"")) -> 0 | I102: 3x12x7 | J102: ST-1214-031207 | K102: =IFERROR('Rough In'!K102*_xlfn.XLOOKUP($J102,'R Cost'!$H:$H,'R Cost'!$I:$I),"") -> 0
A103: 80 CFM FAN | B103: BF-A000HLNF | C103: =IFERROR('Rough In'!C101*_xlfn.XLOOKUP($B103,'R Cost'!$B:$B,'R Cost'!$C:$C),"") -> 0 | E103: 2" PVC 90 | F103: BR-0389 | G103: ='Rough In'!G103*'R Cost'!F103 -> 0 | I103: 3x12x8 | J103: ST-1214-031208 | K103: =IFERROR('Rough In'!K103*_xlfn.XLOOKUP($J103,'R Cost'!$H:$H,'R Cost'!$I:$I),"") -> 0
A104: 80 CFM Light | B104: BF-AE80BF1 | C104: =IFERROR('Rough In'!C102*_xlfn.XLOOKUP($B104,'R Cost'!$B:$B,'R Cost'!$C:$C),"") -> 0 | E104: 2" PVC 45 | F104: BR-0387DWV | G104: ='Rough In'!G104*'R Cost'!F104 -> 0 | I104: 3x14x8 | J104: ST-1214-031408 | K104: =IFERROR('Rough In'!K104*_xlfn.XLOOKUP($J104,'R Cost'!$H:$H,'R Cost'!$I:$I),"") -> 0
A105: 50 Finish Kit | B105: BF-1688EF | C105: =IFERROR('Rough In'!C103*_xlfn.XLOOKUP($B105,'R Cost'!$B:$B,'R Cost'!$C:$C),"") -> 0 | E105: 2" PVC Coupling | F105: BR-0384 | G105: ='Rough In'!G105*'R Cost'!F105 -> 0
E106: 2" J-Hooks | F106: DV-515J2000 | G106: ='Rough In'!G106*'R Cost'!F106 -> 0 | I106: Deep Boxes
A107: Panning | E107: 2" Concentric Kit | F107: DV-CVENT2 | G107: ='Rough In'!G107*'R Cost'!F107 -> 0 | I107: 4x10 | J107: ST-1172-0410 | K107: =IFERROR('Rough In'!K107*_xlfn.XLOOKUP($J107,'R Cost'!$H:$H,'R Cost'!$I:$I),"") -> 0
A108: Single Sheet | B108: ST-20717 | C108: =IFERROR('Rough In'!C106*_xlfn.XLOOKUP($B108,'R Cost'!$B:$B,'R Cost'!$C:$C),"") -> 0 | E108: 3" PVC - 10' Sections | F108: BR-6081 | G108: =IF('Rough In'!G108="",0,IFERROR(SUBSTITUTE(SUBSTITUTE('Rough In'!G108,"'",""),"""","")*'R Cost'!F108,"")) -> 0 | I108: 4x12 | J108: ST-1172-0412 | K108: =IFERROR('Rough In'!K108*_xlfn.XLOOKUP($J108,'R Cost'!$H:$H,'R Cost'!$I:$I),"") -> 0
A109: Double Sheet | B109: ST-20833 | C109: =IFERROR('Rough In'!C107*_xlfn.XLOOKUP($B109,'R Cost'!$B:$B,'R Cost'!$C:$C),"") -> 0 | E109: 3" PVC 90 | F109: BR-0419 | G109: ='Rough In'!G109*'R Cost'!F109 -> 0 | I109: 6x14 | J109: ST-1172-0614 | K109: =IFERROR('Rough In'!K109*_xlfn.XLOOKUP($J109,'R Cost'!$H:$H,'R Cost'!$I:$I),"") -> 0
A110: Thermopan Single | B110: TP-1648 | C110: =IFERROR('Rough In'!C108*_xlfn.XLOOKUP($B110,'R Cost'!$B:$B,'R Cost'!$C:$C),"") -> 0 | E110: 3" PVC 45 | F110: BR-0417 | G110: ='Rough In'!G110*'R Cost'!F110 -> 0 | I110: 6x12 | J110: ST-1172-0612 | K110: =IFERROR('Rough In'!K110*_xlfn.XLOOKUP($J110,'R Cost'!$H:$H,'R Cost'!$I:$I),"") -> 0
A111: Thermopan Double | B111: TP-3236 | C111: =IFERROR('Rough In'!C109*_xlfn.XLOOKUP($B111,'R Cost'!$B:$B,'R Cost'!$C:$C),"") -> 0 | E111: 3" PVC Coupling | F111: BR-0415 | G111: ='Rough In'!G111*'R Cost'!F111 -> 0
A112: Thermopan Header | B112: TP-16013 | C112: =IFERROR('Rough In'!C110*_xlfn.XLOOKUP($B112,'R Cost'!$B:$B,'R Cost'!$C:$C),"") -> 0 | E112: 3" J-Hooks | F112: DV-515J3000 | G112: ='Rough In'!G112*'R Cost'!F112 -> 0 | I112: Stick-On Long Collars(w/dampers)
E113: 3"-2" PVC reducer | F113: BR-0414 | G113: ='Rough In'!G113*'R Cost'!F113 -> 0 | I113: 4" | J113: ST-302-04 | K113: =IFERROR('Rough In'!K113*_xlfn.XLOOKUP($J113,'R Cost'!$H:$H,'R Cost'!$I:$I),"") -> 0
A114: FLEX R8 | E114: 3" Concentric Kit | F114: DV-CVENT3 | G114: ='Rough In'!G114*'R Cost'!F114 -> 0 | I114: 6" | J114: ST-302-06 | K114: =IFERROR('Rough In'!K114*_xlfn.XLOOKUP($J114,'R Cost'!$H:$H,'R Cost'!$I:$I),"") -> 0
A115: 4" | B115: FX-4KPR8 | C115: =IFERROR('Rough In'!C113*_xlfn.XLOOKUP($B115,'R Cost'!$B:$B,'R Cost'!$C:$C),"") -> 0 | I115: 7" | J115: ST-302-07 | K115: =IFERROR('Rough In'!K115*_xlfn.XLOOKUP($J115,'R Cost'!$H:$H,'R Cost'!$I:$I),"") -> 0
A116: 6" | B116: FX-6KPR8 | C116: =IFERROR('Rough In'!C114*_xlfn.XLOOKUP($B116,'R Cost'!$B:$B,'R Cost'!$C:$C),"") -> 0 | E116: Register Starting Collars | I116: 8" | J116: ST-302-08 | K116: =IFERROR('Rough In'!K116*_xlfn.XLOOKUP($J116,'R Cost'!$H:$H,'R Cost'!$I:$I),"") -> 0
A117: 7" | B117: FX-7KPR8 | C117: =IFERROR('Rough In'!C115*_xlfn.XLOOKUP($B117,'R Cost'!$B:$B,'R Cost'!$C:$C),"") -> 0 | E117: 4x10 | F117: ST-PH101-0410 | G117: ='Rough In'!G117*'R Cost'!F117 -> 0 | I117: 10" | J117: ST-302-10 | K117: =IFERROR('Rough In'!K117*_xlfn.XLOOKUP($J117,'R Cost'!$H:$H,'R Cost'!$I:$I),"") -> 0
A118: 8" | B118: FX-8KPR8 | C118: =IFERROR('Rough In'!C116*_xlfn.XLOOKUP($B118,'R Cost'!$B:$B,'R Cost'!$C:$C),"") -> 0 | E118: 4x12 | F118: ST-PH101-0412 | G118: ='Rough In'!G118*'R Cost'!F118 -> 0 | I118: 12" | J118: ST-302-12 | K118: =IFERROR('Rough In'!K118*_xlfn.XLOOKUP($J118,'R Cost'!$H:$H,'R Cost'!$I:$I),"") -> 0
A119: 10" | B119: FX-10KPR8 | C119: =IFERROR('Rough In'!C117*_xlfn.XLOOKUP($B119,'R Cost'!$B:$B,'R Cost'!$C:$C),"") -> 0 | I119: 14" | J119: ST-302-14 | K119: =IFERROR('Rough In'!K119*_xlfn.XLOOKUP($J119,'R Cost'!$H:$H,'R Cost'!$I:$I),"") -> 0
A120: 12" | B120: FX-12KPR8 | C120: =IFERROR('Rough In'!C118*_xlfn.XLOOKUP($B120,'R Cost'!$B:$B,'R Cost'!$C:$C),"") -> 0 | E120: Starting Collars | I120: 18" | J120: ST-302-16 | K120: =IFERROR('Rough In'!K120*_xlfn.XLOOKUP($J120,'R Cost'!$H:$H,'R Cost'!$I:$I),"") -> 0
A121: 14" | B121: FX-14KPR8 | C121: =IFERROR('Rough In'!C119*_xlfn.XLOOKUP($B121,'R Cost'!$B:$B,'R Cost'!$C:$C),"") -> 0 | E121: 10X8 | F121: ST-1200-0808 | G121: ='Rough In'!G121*'R Cost'!F121 -> 0
A122: 16" | B122: FX-16KPR8 | C122: =IFERROR('Rough In'!C120*_xlfn.XLOOKUP($B122,'R Cost'!$B:$B,'R Cost'!$C:$C),"") -> 0 | E122: 10x8 | F122: ST-1200-1008 | G122: ='Rough In'!G122*'R Cost'!F122 -> 0 | I122: Alum. Bath Flex (25')
E123: 12x8 | F123: ST-1200-1208 | G123: ='Rough In'!G123*'R Cost'!F123 -> 0 | I123: 4" | J123: FX-4MC | K123: =IFERROR('Rough In'!K123*_xlfn.XLOOKUP($J123,'R Cost'!$H:$H,'R Cost'!$I:$I),"") -> 0
A124: Elbows for Round Pipe | E124: 14x8 | F124: ST-1200-1408 | G124: ='Rough In'!G124*'R Cost'!F124 -> 0 | I124: 3" | J124: FX-3MC | K124: =IFERROR('Rough In'!K124*_xlfn.XLOOKUP($J124,'R Cost'!$H:$H,'R Cost'!$I:$I),"") -> 0
A125: 4" | B125: ST-ELV-3004 | C125: =IFERROR('Rough In'!C123*_xlfn.XLOOKUP($B125,'R Cost'!$B:$B,'R Cost'!$C:$C),"") -> 0 | E125: 16X8 | F125: ST-1200-1608 | G125: ='Rough In'!G125*'R Cost'!F125 -> 0
A126: 6" | B126: ST-ELV-3006 | C126: =IFERROR('Rough In'!C124*_xlfn.XLOOKUP($B126,'R Cost'!$B:$B,'R Cost'!$C:$C),"") -> 0 | E126: 18x8 | F126: ST-1200-1808 | G126: ='Rough In'!G126*'R Cost'!F126 -> 0 | I126: Roof Jack
A127: 7" | B127: ST-ELV-3007 | C127: =IFERROR('Rough In'!C125*_xlfn.XLOOKUP($B127,'R Cost'!$B:$B,'R Cost'!$C:$C),"") -> 0 | E127: 20x8 | F127: ST-1200-2008 | G127: ='Rough In'!G127*'R Cost'!F127 -> 0 | I127: Small | J127: BF-636 | K127: =IFERROR('Rough In'!K127*_xlfn.XLOOKUP($J127,'R Cost'!$H:$H,'R Cost'!$I:$I),"") -> 0
A128: 8" | B128: ST-ELV-3008 | C128: =IFERROR('Rough In'!C126*_xlfn.XLOOKUP($B128,'R Cost'!$B:$B,'R Cost'!$C:$C),"") -> 0 | E128: 24x8 | F128: ST-1200-2208 | G128: ='Rough In'!G128*'R Cost'!F128 -> 0 | I128: Large | J128: BF-634 | K128: =IFERROR('Rough In'!K128*_xlfn.XLOOKUP($J128,'R Cost'!$H:$H,'R Cost'!$I:$I),"") -> 0
A129: 10" | B129: ST-ELV-3010 | C129: =IFERROR('Rough In'!C127*_xlfn.XLOOKUP($B129,'R Cost'!$B:$B,'R Cost'!$C:$C),"") -> 0 | E129: 20x10 | F129: ST-1200-2408 | G129: ='Rough In'!G129*'R Cost'!F129 -> 0 | I129: 3" Rubber Plumber Flashing | J129: DV-5-11866 | K129: =IFERROR('Rough In'!K129*_xlfn.XLOOKUP($J129,'R Cost'!$H:$H,'R Cost'!$I:$I),"") -> 0
A130: 12" | B130: ST-ELV-2612 | C130: =IFERROR('Rough In'!C128*_xlfn.XLOOKUP($B130,'R Cost'!$B:$B,'R Cost'!$C:$C),"") -> 0 | E130: 24x10 | F130: ST-1200-2410 | G130: ='Rough In'!G130*'R Cost'!F130 -> 0
A131: 14" | B131: ST-ELV-2614 | C131: =IFERROR('Rough In'!C129*_xlfn.XLOOKUP($B131,'R Cost'!$B:$B,'R Cost'!$C:$C),"") -> 0 | E131: 24x12 | F131: ST-1200-2412 | G131: ='Rough In'!G131*'R Cost'!F131 -> 0 | I131: Evolution Zone Dampers
A132: 16" | B132: ST-ELV-2616 | C132: =IFERROR('Rough In'!C130*_xlfn.XLOOKUP($B132,'R Cost'!$B:$B,'R Cost'!$C:$C),"") -> 0 | E132: 30x12 | F132: ST-1200-3012 | G132: ='Rough In'!G132*'R Cost'!F132 -> 0 | I132: 6" | J132: DAMPRND06INC | K132: =IFERROR('Rough In'!K132*_xlfn.XLOOKUP($J132,'R Cost'!$H:$H,'R Cost'!$I:$I),"") -> 0
I133: 8" | J133: DAMPRND08INC | K133: =IFERROR('Rough In'!K133*_xlfn.XLOOKUP($J133,'R Cost'!$H:$H,'R Cost'!$I:$I),"") -> 0
A134: Return Air Frames | E134: Manual Damp. - Rnd Pipe | I134: 10" | J134: DAMPRND10INC | K134: =IFERROR('Rough In'!K134*_xlfn.XLOOKUP($J134,'R Cost'!$H:$H,'R Cost'!$I:$I),"") -> 0
A135: 12x6 | B135: ST-31HC-0610 | C135: =IFERROR('Rough In'!C133*_xlfn.XLOOKUP($B135,'R Cost'!$B:$B,'R Cost'!$C:$C),"") -> 0 | E135: 4" | F135: ST-180-2-04 | G135: ='Rough In'!G135*'R Cost'!F135 -> 0 | I135: 12" | J135: DAMPRND12INC | K135: =IFERROR('Rough In'!K135*_xlfn.XLOOKUP($J135,'R Cost'!$H:$H,'R Cost'!$I:$I),"") -> 0
A136: 14x6 | B136: ST-31HC-0614 | C136: =IFERROR('Rough In'!C134*_xlfn.XLOOKUP($B136,'R Cost'!$B:$B,'R Cost'!$C:$C),"") -> 0 | E136: 6" | F136: ST-180-2-06 | G136: ='Rough In'!G136*'R Cost'!F136 -> 0 | I136: 14" | J136: DAMPRND14INC | K136: =IFERROR('Rough In'!K136*_xlfn.XLOOKUP($J136,'R Cost'!$H:$H,'R Cost'!$I:$I),"") -> 0
A137: 24x6 | B137: ST-33HC-0824 | C137: =IFERROR('Rough In'!C135*_xlfn.XLOOKUP($B137,'R Cost'!$B:$B,'R Cost'!$C:$C),"") -> 0 | E137: 7" | F137: ST-180-2-07 | G137: ='Rough In'!G137*'R Cost'!F137 -> 0 | I137: 16" | J137: DAMPRND16INC | K137: =IFERROR('Rough In'!K137*_xlfn.XLOOKUP($J137,'R Cost'!$H:$H,'R Cost'!$I:$I),"") -> 0
A138: 30x6 | B138: ST-33HC-0630 | C138: =IFERROR('Rough In'!C136*_xlfn.XLOOKUP($B138,'R Cost'!$B:$B,'R Cost'!$C:$C),"") -> 0 | E138: 8" | F138: ST-180-2-08 | G138: ='Rough In'!G138*'R Cost'!F138 -> 0 | I138: 8" x 10" | J138: DAMPREC08X10 | K138: =IFERROR('Rough In'!K138*_xlfn.XLOOKUP($J138,'R Cost'!$H:$H,'R Cost'!$I:$I),"") -> 0
A139: 30x10 | B139: ST-33HC-3008 | C139: =IFERROR('Rough In'!C137*_xlfn.XLOOKUP($B139,'R Cost'!$B:$B,'R Cost'!$C:$C),"") -> 0 | E139: 10" | F139: ST-180-2-10 | G139: ='Rough In'!G139*'R Cost'!F139 -> 0 | I139: 8" x 14" | J139: DAMPREC08X14 | K139: =IFERROR('Rough In'!K139*_xlfn.XLOOKUP($J139,'R Cost'!$H:$H,'R Cost'!$I:$I),"") -> 0
A140: 30x12 | B140: ST-33HC-3012 | C140: =IFERROR('Rough In'!C138*_xlfn.XLOOKUP($B140,'R Cost'!$B:$B,'R Cost'!$C:$C),"") -> 0 | E140: 12" | F140: ST-180-2-12 | G140: ='Rough In'!G140*'R Cost'!F140 -> 0 | I140: 8" x 18" | J140: DAMPREC08X18 | K140: =IFERROR('Rough In'!K140*_xlfn.XLOOKUP($J140,'R Cost'!$H:$H,'R Cost'!$I:$I),"") -> 0
A141: 30x8 | B141: ST-33HC-3008 | C141: =IFERROR('Rough In'!C139*_xlfn.XLOOKUP($B141,'R Cost'!$B:$B,'R Cost'!$C:$C),"") -> 0 | E141: 14" | F141: ST-180-2-14 | G141: ='Rough In'!G141*'R Cost'!F141 -> 0 | I141: 8" x 24" | J141: DAMPREC08X24 | K141: =IFERROR('Rough In'!K141*_xlfn.XLOOKUP($J141,'R Cost'!$H:$H,'R Cost'!$I:$I),"") -> 0
A142: 12x12 | B142: ST-33HC-1212 | C142: =IFERROR('Rough In'!C140*_xlfn.XLOOKUP($B142,'R Cost'!$B:$B,'R Cost'!$C:$C),"") -> 0 | E142: 16" | F142: ST-180-2-16 | G142: ='Rough In'!G142*'R Cost'!F142 -> 0 | I142: 10" x 10" | J142: DAMPREC10X10 | K142: =IFERROR('Rough In'!K142*_xlfn.XLOOKUP($J142,'R Cost'!$H:$H,'R Cost'!$I:$I),"") -> 0
A143: 14x14 | B143: ST-33HC-1414 | C143: =IFERROR('Rough In'!C141*_xlfn.XLOOKUP($B143,'R Cost'!$B:$B,'R Cost'!$C:$C),"") -> 0 | I143: 10" x 14" | J143: DAMPREC10X14 | K143: =IFERROR('Rough In'!K143*_xlfn.XLOOKUP($J143,'R Cost'!$H:$H,'R Cost'!$I:$I),"") -> 0
A144: 16x16 | B144: ST-33HC-1616 | C144: =IFERROR('Rough In'!C142*_xlfn.XLOOKUP($B144,'R Cost'!$B:$B,'R Cost'!$C:$C),"") -> 0 | E144: Spiral Couplings/Accessories | I144: 10" x 18" | J144: DAMPREC10X18 | K144: =IFERROR('Rough In'!K144*_xlfn.XLOOKUP($J144,'R Cost'!$H:$H,'R Cost'!$I:$I),"") -> 0
A145: 20x20 | B145: ST-33HC-2020 | C145: =IFERROR('Rough In'!C143*_xlfn.XLOOKUP($B145,'R Cost'!$B:$B,'R Cost'!$C:$C),"") -> 0 | E145: 10" spiral coupling | F145: LSM-SC10 | G145: ='Rough In'!G145*'R Cost'!F145 -> 0 | I145: 10" x 24" | J145: DAMPREC10X24 | K145: =IFERROR('Rough In'!K145*_xlfn.XLOOKUP($J145,'R Cost'!$H:$H,'R Cost'!$I:$I),"") -> 0
E146: 12" spiral coupling | F146: LSM-SC12 | G146: ='Rough In'!G146*'R Cost'!F146 -> 0
A147: Stick-on Saddle Collars | E147: 14" spiral coupling | F147: LSM-SC14 | G147: ='Rough In'!G147*'R Cost'!F147 -> 0 | I147: Manual Dampers
A148: 4" | B148: ST-305-04 | C148: =IFERROR('Rough In'!C146*_xlfn.XLOOKUP($B148,'R Cost'!$B:$B,'R Cost'!$C:$C),"") -> 0 | E148: 16" spiral coupling | F148: LSM-SC16 | G148: ='Rough In'!G148*'R Cost'!F148 -> 0 | I148: 24x8 | J148: ST-182-2408 | K148: =IFERROR('Rough In'!K148*_xlfn.XLOOKUP($J148,'R Cost'!$H:$H,'R Cost'!$I:$I),"") -> 0
A149: 6" | B149: ST-305-06 | C149: =IFERROR('Rough In'!C147*_xlfn.XLOOKUP($B149,'R Cost'!$B:$B,'R Cost'!$C:$C),"") -> 0 | E149: Clutchers (for steel cable) | F149: DUR-30351 | G149: ='Rough In'!G149*'R Cost'!F149 -> 0 | I149: 22x8 | J149: ST-182-2208 | K149: =IFERROR('Rough In'!K149*_xlfn.XLOOKUP($J149,'R Cost'!$H:$H,'R Cost'!$I:$I),"") -> 0
A150: 7" | B150: ST-305-07 | C150: =IFERROR('Rough In'!C148*_xlfn.XLOOKUP($B150,'R Cost'!$B:$B,'R Cost'!$C:$C),"") -> 0 | E150: Roll of steel braided cable | F150: DUR-30202 | G150: ='Rough In'!G150*'R Cost'!F150 -> 0 | I150: 20x8 | J150: ST-182-2008 | K150: =IFERROR('Rough In'!K150*_xlfn.XLOOKUP($J150,'R Cost'!$H:$H,'R Cost'!$I:$I),"") -> 0
A151: 8" | B151: ST-305-08 | C151: =IFERROR('Rough In'!C149*_xlfn.XLOOKUP($B151,'R Cost'!$B:$B,'R Cost'!$C:$C),"") -> 0 | E151: 4x12 spiral register | F151: TRU-SU2A12X4 | G151: ='Rough In'!G151*'R Cost'!F151 -> 0 | I151: 18x8 | J151: ST-182-1808 | K151: =IFERROR('Rough In'!K151*_xlfn.XLOOKUP($J151,'R Cost'!$H:$H,'R Cost'!$I:$I),"") -> 0
A152: 10" | B152: ST-305-10 | C152: =IFERROR('Rough In'!C150*_xlfn.XLOOKUP($B152,'R Cost'!$B:$B,'R Cost'!$C:$C),"") -> 0 | E152: 6x12 spiral register | F152: TRU-SU2A12X6 | G152: ='Rough In'!G152*'R Cost'!F152 -> 0 | I152: 16x8 | J152: ST-182-1608 | K152: =IFERROR('Rough In'!K152*_xlfn.XLOOKUP($J152,'R Cost'!$H:$H,'R Cost'!$I:$I),"") -> 0
A153: 12" | B153: ST-305-12 | C153: =IFERROR('Rough In'!C151*_xlfn.XLOOKUP($B153,'R Cost'!$B:$B,'R Cost'!$C:$C),"") -> 0 | I153: 14x8 | J153: ST-182-1408 | K153: =IFERROR('Rough In'!K153*_xlfn.XLOOKUP($J153,'R Cost'!$H:$H,'R Cost'!$I:$I),"") -> 0
A154: 14" | B154: ST-305-14 | C154: =IFERROR('Rough In'!C152*_xlfn.XLOOKUP($B154,'R Cost'!$B:$B,'R Cost'!$C:$C),"") -> 0 | E154: Makeup Air Damper Kit | I154: 12x8 | J154: ST-182-1208 | K154: =IFERROR('Rough In'!K154*_xlfn.XLOOKUP($J154,'R Cost'!$H:$H,'R Cost'!$I:$I),"") -> 0
E155: Broan 6" | F155: NU-MD6TU | G155: ='Rough In'!G155*'R Cost'!F155 -> 0 | I155: 10X8 | J155: ST-182-1008 | K155: =IFERROR('Rough In'!K155*_xlfn.XLOOKUP($J155,'R Cost'!$H:$H,'R Cost'!$I:$I),"") -> 0
A156: Dryer Vent Box | E156: Broan 8" | F156: NU-MD8TU | G156: ='Rough In'!G156*'R Cost'!F156 -> 0
A157: (2x4 wall box) | B157: ST-DVB350 | C157: =IFERROR('Rough In'!C155*_xlfn.XLOOKUP($B157,'R Cost'!$B:$B,'R Cost'!$C:$C),"") -> 0 | E157: Broan 10" | F157: NU-MD10TU | G157: ='Rough In'!G157*'R Cost'!F157 -> 0 | I157: Standard Lineset - 3/4" Insul
A158: (2x6 wall box) | B158: ST-DVB425 | C158: =IFERROR('Rough In'!C156*_xlfn.XLOOKUP($B158,'R Cost'!$B:$B,'R Cost'!$C:$C),"") -> 0 | I158: 5/8" x 3/8" x 40' | J158: LS-583840-12 | K158: =IFERROR('Rough In'!K158*_xlfn.XLOOKUP($J158,'R Cost'!$B:$B,'R Cost'!$C:$C),"") -> 0
E159: Minisplit Lineset | I159: 5/8" x 3/8" x 50' | J159: LS-583850-12 | K159: =IFERROR('Rough In'!K159*_xlfn.XLOOKUP($J159,'R Cost'!$B:$B,'R Cost'!$C:$C),"") -> 0
A160: Spiral Pipe | E160: 3/8" x1/4" x 25' | F160: LS-MS381425-12EZ | G160: ='Rough In'!G160*'R Cost'!F160 -> 0 | I160: 3/4" x 3/8" x 40' | J160: LS-343840-12 | K160: =IFERROR('Rough In'!K160*_xlfn.XLOOKUP($J160,'R Cost'!$B:$B,'R Cost'!$C:$C),"") -> 0
A161: 4" | B161: LSM-SP04 | C161: =IF('Rough In'!C159="",0,IFERROR(SUBSTITUTE(SUBSTITUTE('Rough In'!C159,"'",""),"""","")/10*_xlfn.XLOOKUP($B161,'R Cost'!$B:$B,'R Cost'!$C:$C),"")) -> 0 | E161: 3/8" x1/4" x 50' | F161: LS-MS381450-12EZ | G161: ='Rough In'!G161*'R Cost'!F161 -> 0 | I161: 3/4" x 3/8" x 50' | J161: LS-343850-12 | K161: =IFERROR('Rough In'!K161*_xlfn.XLOOKUP($J161,'R Cost'!$B:$B,'R Cost'!$C:$C),"") -> 0
A162: 6" | B162: LSM-SP06 | C162: =IF('Rough In'!C160="",0,IFERROR(SUBSTITUTE(SUBSTITUTE('Rough In'!C160,"'",""),"""","")/10*_xlfn.XLOOKUP($B162,'R Cost'!$B:$B,'R Cost'!$C:$C),"")) -> 0 | E162: 1/2" x 1/4" x 25' | F162: LS-MS121425-12EZ | G162: ='Rough In'!G162*'R Cost'!F162 -> 0 | I162: 7/8" x 3/8" x 40' | J162: LS-783840-12 | K162: =IFERROR('Rough In'!K162*_xlfn.XLOOKUP($J162,'R Cost'!$B:$B,'R Cost'!$C:$C),"") -> 0
A163: 7" | B163: LSM-SP07 | C163: =IF('Rough In'!C161="",0,IFERROR(SUBSTITUTE(SUBSTITUTE('Rough In'!C161,"'",""),"""","")/10*_xlfn.XLOOKUP($B163,'R Cost'!$B:$B,'R Cost'!$C:$C),"")) -> 0 | E163: 1/2" x 1/4" x 50' | F163: LS-MS121450-12EZ | G163: ='Rough In'!G163*'R Cost'!F163 -> 0 | I163: 7/8" x 3/8" x 50' | J163: LS-783850-12 | K163: =IFERROR('Rough In'!K163*_xlfn.XLOOKUP($J163,'R Cost'!$B:$B,'R Cost'!$C:$C),"") -> 0
A164: 8" | B164: LSM-SP08 | C164: =IF('Rough In'!C162="",0,IFERROR(SUBSTITUTE(SUBSTITUTE('Rough In'!C162,"'",""),"""","")/10*_xlfn.XLOOKUP($B164,'R Cost'!$B:$B,'R Cost'!$C:$C),"")) -> 0 | E164: 5/8" x 3/8" x 25' | F164: LS-MS583825-12EZ | G164: ='Rough In'!G164*'R Cost'!F164 -> 0 | I164: 2" Lineset Clamps | J164: TP-41125 | K164: =IFERROR('Rough In'!K164*_xlfn.XLOOKUP($J164,'R Cost'!$B:$B,'R Cost'!$C:$C),"") -> 0
A165: 10" | B165: LSM-SP10 | C165: =IF('Rough In'!C163="",0,IFERROR(SUBSTITUTE(SUBSTITUTE('Rough In'!C163,"'",""),"""","")/10*_xlfn.XLOOKUP($B165,'R Cost'!$B:$B,'R Cost'!$C:$C),"")) -> 0 | E165: 5/8" x 3/8" x 50' | F165: LS-MS583850-12EZ | G165: ='Rough In'!G165*'R Cost'!F165 -> 0
A166: 12" | B166: LSM-SP12 | C166: =IF('Rough In'!C164="",0,IFERROR(SUBSTITUTE(SUBSTITUTE('Rough In'!C164,"'",""),"""","")/10*_xlfn.XLOOKUP($B166,'R Cost'!$B:$B,'R Cost'!$C:$C),"")) -> 0 | E166: 3/4" x 3/8" x 35' | F166: LS-MS343835-12EZ | G166: ='Rough In'!G166*'R Cost'!F166 -> 0
A167: 14" | B167: LSM-SP14 | C167: =IF('Rough In'!C165="",0,IFERROR(SUBSTITUTE(SUBSTITUTE('Rough In'!C165,"'",""),"""","")/10*_xlfn.XLOOKUP($B167,'R Cost'!$B:$B,'R Cost'!$C:$C),"")) -> 0 | E167: 3/4" x 3/8" x 50' | F167: LS-MS343850-12EZ | G167: ='Rough In'!G167*'R Cost'!F167 -> 0
A168: 16" | B168: LSM-SP16 | C168: =IF('Rough In'!C166="",0,IFERROR(SUBSTITUTE(SUBSTITUTE('Rough In'!C166,"'",""),"""","")/10*_xlfn.XLOOKUP($B168,'R Cost'!$B:$B,'R Cost'!$C:$C),"")) -> 0
A171: Subtotal (Column 1): | C171: =SUM(C8:C169)-C21 -> 231.53 | E171: Subtotal (Column 2): | G171: =SUM(G9:G169) -> 0 | I171: Subtotal (Column 3): | K171: =SUM(K9:K169) -> 0
A175: Equipment Cost: | C175: =C21 -> 0
A176: Material Cost: | C176: =G177-C175 -> 231.53
A177: Grand Subtotal: | C177: =SUM(C175:C176) -> 231.53 | D177: = | E177: Grand Subtotal: | G177: =C171+G171+K171 -> 231.53
E178: Tax: | G178: =G177*$J$178 -> 18.05934 | I178: Sales Tax Rate: | J178: 0.078
E179: Grand Total (Rough In): | G179: =G177+G178 -> 249.58934

Sheet R Cost
A1: Rough Costing Form
C2: PO: | F2: Deliver On:
A3: Notes:
A4: Add following equipment previously purchased to delivery: | B4: Ticket # | C4: Job PO | D4: Model | E4: Serial #
C6: COST | F6: COST | I6: COST
A7: FURNACE/AIR HANDLER | D7: Transitional Takeoffs | G7: Stick-On Flat 90’s
A8: COIL | D8: 24x12 | E8: ST-1203-2412 | F8: 64.63 | G8: 8" | H8: ST-306-08 | I8: 14.19
A9: HEAT PACK | D9: 24x10 | E9: ST-1203-2410 | F9: 78.09 | G9: 7" | H9: ST-306-07 | I9: 11.63
A10: Bottom Box | B10: SEE SECOND SHEET | D10: 20x10 | E10: ST-1203-2010 | F10: 46.05 | G10: 6" | H10: ST-306-06 | I10: 10.33
A11: Plenum | B11: SEE SECOND SHEET | D11: 24x8 | E11: ST-1203-2408 | F11: 39.45 | G11: 4" | H11: ST-306-04 | I11: 9.88
A12: Coil Adapter/Spacer | B12: SEE SECOND SHEET | D12: 22x8 | E12: ST-1203-2208 | F12: 37.59
A13: Com. Wire(14-4 50FT) | B13: 14-4C | C13: 75.38 | D13: 20x8 | E13: ST-1203-2008 | F13: 37.08 | G13: Round Pipe (5' Sections) 30GA
A14: Com. Wire(14-4 250FT) | B14: 14-4C-250 | C14: 598.38 | D14: 18x8 | E14: ST-1203-1808 | F14: 34.21 | G14: 3" | H14: ST-RDP-053003 | I14: 6.75
A15: Bricks | B15: HO-619345 | C15: 1.48 | D15: 16x8 | E15: ST-1203-1608 | F15: 32.71 | G15: 4" | H15: ST-RDP-053004 | I15: 7.94
A16: Adjustable Pump-Ups | B16: DV-HPR6-2P | C16: 5.46 | D16: 14x8 | E16: ST-1203-1408 | F16: 31.56 | G16: 6" | H16: ST-RDP-053006 | I16: 8.34
A17: SMALL BYP. HUMIDIFIER | B17: HUMCRSBP2412 | C17: 170 | D17: 12x8 | E17: ST-1203-1208 | F17: 38.13 | G17: 7" | H17: ST-RDP-053007 | I17: 11.09
A18: LARGE BYP. HUMIDIFIER | B18: HUMCRLBP2417 | C18: 182 | D18: 10x8 | E18: ST-1203-1008 | F18: 36.83 | G18: 8" | H18: ST-RDP-053008 | I18: 13.7
G19: 10" | H19: ST-RDP-053010 | I19: 17.91
A20: Media Cabinets | D20: Duct - 5' Sections | G20: 12" | H20: ST-RDP-053012 | I20: 21.46
A21: Core Media Cabinet - 16X25 | B21: EZXCABCR1016 | C21: 168 | G21: 14" | H21: ST-RDP-052614 | I21: 32.36
A22: Core Media Cabinet - 20X25 | B22: EZXCABCR1320 | C22: 207.96 | D22: 25x10 | E22: ST-DT-602510 | F22: 60.44 | G22: 16" | H22: ST-RDP-052616 | I22: 47.98
A23: Media Cabinet - 24X25 | B23: FILCABXL0024 | C23: 45 | D23: 24x12 | E23: ST-DT-602412 | F23: 57.82
A24: Honeywell Media Cab 16x20 | B24: HW-F100F1620 | C24: 138.2 | D24: 24x10 | E24: ST-DT-602410 | F24: 52.56 | G24: Boot Frames
A25: Honeywell Media Cab 20x20 | B25: HW-F100F2020 | C25: 138.2 | D25: 20x10 | E25: ST-DT-602010 | F25: 57.82 | G25: H-4 Boot Frame | H25: PT-H4 | I25: 7.68
A26: Honeywell Media Cab 20x25 | B26: HW-F100F2025 | C26: 138.2 | D26: 24x8 | E26: ST-DT-602408 | F26: 43.81 | G26: H-6 Boot Frame | H26: PT-H6 | I26: 6.37
D27: 22x8 | E27: ST-DT-602208 | F27: 43.08
A28: Standard Items | D28: 20x8 | E28: ST-DT-602008 | F28: 37.59 | G28: Boots
A29: Tub 3/4" screws | B29: MA-HW8X3/4ZT | C29: 41.14 | D29: 18x8 | E29: ST-DT-601808 | F29: 35.88 | G29: 4x10x4 end boot | H29: ST-1373-041004 | I29: 5.95
A30: Tub 1/2" screws | B30: MA-HW8X1/2ZT | C30: 31.64 | D30: 16x8 | E30: ST-DT-601608 | F30: 30 | G30: 4x10x4 L boot | H30: ST-1374-041004 | I30: 5.2
A31: Basset Hangers | B31: BP-A125 | C31: 21.46 | D31: 14x8 | E31: ST-DT-601408 | F31: 28.94 | G31: 4x10x4 straight boot | H31: ST-1370-041004 | I31: 5.13
A32: 5' Drives | B32: ST-213-60 | C32: 2.24 | D32: 12x8 | E32: ST-DT-601208 | F32: 25.53 | G32: 4x10x6 L boot | H32: ST-1374-041006 | I32: 5.13
A33: 5' S-Locks | B33: ST-209-60 | C33: 2.57 | D33: 10x8 | E33: ST-DT-601008 | F33: 24.51 | G33: 4x10x6 end boot | H33: ST-1373-041006 | I33: 5.13
A34: Rolls of 3" tape | B34: DT-322F3 | C34: 18.27 | D34: 8x8 | E34: ST-DT-600808 | F34: 22.9 | G34: 4x10x6 straight boot | H34: ST-1370-041006 | I34: 5.13
A35: Rolls of mastic tape | B35: AFG-1404-181 | C35: 40.44 | G35: 4x12x6 end boot | H35: ST-1373-041206 | I35: 5.89
A36: Duct Sealant Gallon Pail | B36: HF-SDSWB | C36: 19.82 | D36: End Caps | G36: 4x12x6 L boot | H36: ST-1374-041206 | I36: 5.89
A37: 2" brushes | B37: DV-B503 | C37: 0.8 | D37: 25x12 | E37: ST-1210-3012 | F37: 14.06 | G37: 4x12x6 straight boot | H37: ST-1370-041206 | I37: 5.89
A38: Tubes of Clear Silicone | B38: BO-370C | C38: 7.41 | D38: 24x12 | E38: ST-1210-2412 | F38: 10.44 | G38: 4x12x7 L boot | H38: ST-1374-041207 | I38: 5.89
A39: 10' Section - 3/4" PVC | B39: BR-6106 | C39: =1.01*10 -> 10.1 | D39: 24x10 | E39: ST-1210-2410 | F39: 8.62 | G39: 4x12x7 straight boot | H39: ST-1370-041207 | I39: 5.89
A40: EZ-Trap Clear PVC Trap for AH | B40: RC-83114 | C40: 20.86 | D40: 20x10 | E40: ST-1210-2010 | F40: 7.65 | G40: 4x12x7 end boot | H40: ST-1373-041207 | I40: 5.89
A41: 3/4" PVC threaded male | B41: BR-0342 | C41: 0.51 | D41: 24x8 | E41: ST-1210-2408 | F41: 8.11 | G41: 6x10x7 end-boot | H41: ST-1373-061007 | I41: 8.83
A42: 3/4" PVC threaded female | B42: BR-0341 | C42: 0.71 | D42: 22x8 | E42: ST-1210-2208 | F42: 7.65 | G42: 6x10x7 L boot | H42: ST-1374-061007 | I42: 7.24
A43: 3/4" PVC 90's | B43: BR-0344 | C43: 0.56 | D43: 20x8 | E43: ST-1210-2008 | F43: 6.38 | G43: 6x10x7 straight boot | H43: ST-1370-061007 | I43: 6.61
A44: 3/4" PVC T's | B44: BR-0349 | C44: 0.71 | D44: 18x8 | E44: ST-1210-1808 | F44: 6.07 | G44: 6x12x7 end boot | H44: ST-1373-061207 | I44: 7.7
A45: 3/4" PVC 45’s | B45: BR-0346 | C45: 1.29 | D45: 16x8 | E45: ST-1210-1608 | F45: 5.57 | G45: 6x12x7 L boot | H45: ST-1374-061207 | I45: 7.93
A46: Glue | B46: DV-510 | C46: 14.72 | D46: 14x8 | E46: ST-1210-1408 | F46: 5.18 | G46: 6x12x7 straight boot | H46: ST-1370-061207 | I46: 7.09
A47: Cleaner | B47: DV-PPC16 | C47: 14.23 | D47: 12x8 | E47: ST-1210-1208 | F47: 4.99 | G47: 6x12x8 straight boot | H47: ST-1370-061208 | I47: 7.19
A48: Rubber 3"x3" pads | B48: DV-MP3E | C48: 2.29 | D48: 10x8 | E48: ST-1210-1008 | F48: 4.81 | G48: 6x12x8 end boot | H48: ST-1373-061208 | I48: 7.81
A49: Bag 36" Panduits | B49: DV-7P36 | C49: 10.83 | D49: 8x8 | E49: ST-1210-0808 | F49: 4.88 | G49: 6x12x8 L boot | H49: ST-1374-061208 | I49: 7.38
A50: Foil Back Fiberglass-2" 75' | B50: KF-E24875FSKLKDW | C50: 174.63 | G50: 6x14x8 L Boot | H50: ST-1374-061408 | I50: 8.22
A51: Lineset Clips - Reg. Size | B51: TP-41125 (5 PER PACK) | C51: =1.38*5 -> 6.9 | D51: Supply Duct Reducers | G51: 6x14x8 Straight Boot | H51: ST-1370-061408 | I51: 8.08
A52: Roll of 3" Webbing | B52: DV-710102 | C52: 16.15 | D52: 2" reducer for 8" duct | E52: ST-187-02 | F52: 5.36 | G52: 6X14X8 end boot | H52: ST-1373-061408 | I52: 8.52
A53: Aquaguard Float Switch | B53: AG-1200 | C53: 22.59 | D53: 4" reducer for 8" duct | E53: ST-187-04 | F53: 5.5
D54: 6" reducer for 8" duct | E54: ST-187-06 | F54: 6.75 | G54: Oval (100" sections)
A55: TEMP FILTERS | D55: 8" reducer for 8" duct | E55: ST-187-08 | F55: 8.44 | G55: 6" | H55: ST-4100-10006 | I55: 15.82
A56: 16x25x1 temp filter | B56: FI-16X25X1 | C56: 3.26 | D56: 24x12 to 24x10 reduc. | E56: ST-1251-24122410 | F56: 31.23 | G56: 7" | H56: ST-4100-10007 | I56: 18.57
A57: 20x25x1 temp filter | B57: FI-20X25X1 | C57: 3.6 | D57: 24x10 to 24x8 reduc. | E57: ST-1251-24102408 | F57: 63.09 | G57: 8" | H57: ST-4100-10008 | I57: 23.18
A58: 24x25x1 temp filter | B58: FI-24X25X1 | C58: 10.34
A59: 16x20x1 temp filter | B59: FI-16X20X1 | C59: 3.2 | D59: Round Reducers | G59: Oval to Round L-Boot
A60: 20x20x1 temp filter | B60: FI-20X20X1 | C60: 3.37 | D60: 4"-3" | E60: ST-133-040326 | F60: 5.28 | G60: 6" oval to round L-Boot | H60: ST-4244NC-06 | I60: 6.62
D61: 6"-4" | E61: ST-133-060426 | F61: 6.67 | G61: 7" oval to round L-Boot | H61: ST-4244NC-07 | I61: 8
A62: Drywall Edging | D62: 8"-6" | E62: ST-133-080626 | F62: 7.06 | G62: 8" oval to round L-Boot | H62: ST-4244NC-08 | I62: 14.89
A63: 5' sections | B63: ST-210-60 | C63: 3.99 | D63: 10"-8" | E63: ST-133-100826 | F63: 10.23
D64: 12"-10" | E64: ST-133-121026 | F64: 11.44 | G64: Oval to Round End Boot
A65: Duct Fittings | D65: 14"-10" | E65: ST-133-141026 | F65: 13.91 | G65: 6" oval-round end boot | H65: ST-4247NC-0606 | I65: 8.7
A66: 10x8 SW 90 | B66: ST-1240-1008 | C66: 21.2 | D66: 14"-12" | E66: ST-133-141226 | F66: 14.73 | G66: 7" oval-round end boot | H66: ST-4247NC-0707 | I66: 14.5
A67: 10x8 BW 90 | B67: ST-1246-1008 | C67: 26.15 | D67: 16"-12" | E67: ST-133-161226 | F67: 19.39 | G67: 8" oval-round end boot | H67: ST-4247NC-0808 | I67: 21.06
A68: 12x8 SW 90 | B68: ST-1240-1208 | C68: 21.72 | D68: 16"-14" | E68: ST-133-161426 | F68: 17.89
A69: 12x8 BW 90 | B69: ST-1246-1208 | C69: 26.59 | G69: Oval-Round Straight Boot
A70: 14x8 SW 90 | B70: ST-1240-1408 | C70: 21.98 | D70: Y's | G70: 6" oval-round straight boot | H70: ST-4248NC-0606 | I70: 7.57
A71: 14x8 BW 90 | B71: ST-1246-1408 | C71: 30.83 | D71: 6X4X4 WITH REDUCER | E71: ST-324-060404 | F71: 23.96 | G71: 7" oval-round straight boot | H71: ST-4248NC-0707 | I71: 11.88
A72: 16x8 SW 90 | B72: ST-1240-1608 | C72: 22.39 | D72: 7x5x3 WITH REDUCER | E72: ST-324-070503 | F72: 31.57 | G72: 8" oval-round straight boot | H72: ST-4248NC-0808 | I72: 18.44
A73: 16x8 BW 90 | B73: ST-1246-1608 | C73: 31.09 | D73: 8X7X6 WITH REDUCER | E73: ST-324-080706 | F73: 29.2
A74: 18x8 SW 90 | B74: ST-1240-1808 | C74: 28.55 | G74: Oval Stackhead w/wings
A75: 18x8 BW 90 | B75: ST-1246-1808 | C75: 33.73 | D75: T's | G75: 6" oval stack head w/4x10 | H75: ST-4235-0941006 | I75: 7.98
A76: 20x8 SW 90 | B76: ST-1240-2008 | C76: 26.31 | D76: 4x4x4 | E76: ST-219-040404 | F76: 12.51 | G76: 7” oval stackhead w/4x12 | H76: ST-4235-0941207 | I76: 11.27
A77: 20x8 BW 90 | B77: ST-1246-2008 | C77: 40.34 | D77: 6x4x4W/reducers | E77: ST-219-060606 | F77: 12.93 | G77: 7” oval stackhead w/6x12 | H77: ST-4235-0961207 | I77: 10.12
A78: 22x8 SW 90 | B78: ST-1240-2208 | C78: 41.47 | D78: 6x6x6 | E78: ST-219-060606 | F78: 14.77 | G78: 8" oval stackhead w/6x14 | H78: ST-4235-0961408 | I78: 12.8
A79: 22x8 BW 90 | B79: ST-1246-2208 | C79: 51.06 | D79: 7x7x7 | E79: ST-219-070707 | F79: 18.07
A80: 24x8 SW 90 | B80: ST-1240-2408 | C80: 29.37 | D80: 8x8x8 | E80: ST-219-080808 | F80: 18.07 | G80: Stack (100" sections)
A81: 24x8 BW 90 | B81: ST-1246-2408 | C81: 51.23 | G81: 3.25x10 | H81: ST-WSBL-1000310 | I81: 43.66
A82: 24x10 SW 90 | B82: ST-1240-2410 | C82: 46.61 | D82: Short Collars w/Crimp | G82: 3.25x12 | H82: ST-WSBL-1000312 | I82: 46.8
A83: 24x10 BW 90 | B83: ST-1246-2410 | C83: 66.97 | D83: 4" | E83: ST-172-04 | F83: 1.63 | G83: 3.25x14 | H83: ST-WSBL-1000314 | I83: 52.57
D84: 6" | E84: ST-172-06 | F84: 1.47
A85: End Caps | D85: 7" | E85: ST-172-07 | F85: 1.87 | G85: Stack to Round L-Boot
A86: 6" | B86: ST-152-06 | C86: 5.57 | D86: 8" | E86: ST-172-08 | F86: 2.15 | G86: 3x10x6 | H86: ST-1218-031006 | I86: 7.86
A87: 10" | B87: ST-152-07 | C87: 6.07 | D87: 10" | E87: ST-172-10 | F87: 3.07 | G87: 3x10x7 | H87: ST-1218-031007 | I87: 11.88
A88: 10" | B88: ST-152-08 | C88: 6.61 | D88: 12" | E88: ST-172-12 | F88: 3.46 | G88: 3x12x7 | H88: ST-1218-031207 | I88: 10.19
A89: 10" | B89: ST-152-10 | C89: 8.99 | D89: 14" | E89: ST-172-14 | F89: 5.29 | G89: 3x12x8 | H89: ST-1218-031208 | I89: 15.72
A90: 12" | B90: ST-152-12 | C90: 9.46 | D90: 16" | E90: ST-172-16 | F90: 7.93 | G90: 3X14X8 | H90: ST-1218-031408 | I90: 15.82
A91: 14" | B91: ST-152-14 | C91: 13.19 | G91: Stack to Round End Boots
A92: 16" | B92: ST-152-16 | C92: 16.12 | D92: Short Collars - No Crimp | G92: 3x10x6 | H92: ST-1219-031006 | I92: 7.94
D93: 4" | E93: ST-171-04 | F93: 1.63 | G93: 3X12X6 | H93: ST-1219-031206 | I93: 9.09
A94: Fans(Include Finish Kit w/order) | D94: 6" | E94: ST-171-06 | F94: 1.75 | G94: 3x12x7 | H94: ST-1219-031207 | I94: 12.93
A95: 50 CFM Fan | B95: BF-1667EH | C95: 7.53 | D95: 7" | E95: ST-171-07 | F95: 2.15 | G95: 3X14X7 | H95: ST-1219-031407 | I95: 15.99
A96: 50 CFM Fan (select light below) | B96: BF-2677H/2678F | C96: 12.34 | D96: 8" | E96: ST-171-08 | F96: 2.15
A97: 50 CFM LIGHT | B97: BF-2678f | C97: 37.18 | D97: 10" | E97: ST-171-10 | F97: 3.34 | G97: Stack to Round Straight Boots
A98: 80 CFM Fan | B98: BF-AE80B | C98: 63.37 | D98: 12" | E98: ST-171-12 | F98: 3.46 | G98: 3x10x6 | H98: ST-1214-031006 | I98: 7.94
A99: 80 CFM FAN (select light below) | B99: BF-A000HLNF | C99: 12.98 | D99: 14" | E99: ST-171-14 | F99: 5.29 | G99: 3x10x7 | H99: ST-1214-031007 | I99: 11.88
A100: 80 CFM Light | B100: BF-AE80BF1 | C100: 66.58 | G100: 3x12x7 | H100: ST-1214-031207 | I100: 10.44
A101: 50 Finish Kit | B101: BF-1688EF | C101: 16.11 | D101: PVC | G101: 3x12x8 | H101: ST-1214-031208 | I101: 12.97
A102: Panning | D102: 2" PVC - 10' Sections | E102: BR-6082 | F102: 1.86 | G102: 3x14x8 | H102: ST-1214-031408 | I102: 15.82
A103: Single Sheet | B103: ST-20717 | C103: 5.07 | D103: 2" PVC 90 | E103: BR-0389 | F103: 4.25
A104: Double Sheet | B104: ST-20833 | C104: 9.09 | D104: 2" PVC 45 | E104: BR-0387DWV | F104: 2.29 | G104: Deep Boxes
A105: Thermopan Single | B105: TP-1648 | C105: 3.54 | D105: 2" PVC Coupling | E105: BR-0384 | F105: 1.8 | G105: 4x10 | H105: ST-1172-0410 | I105: 11.88
A106: Thermopan Double | B106: TP-3236 | C106: 5.49 | D106: 2" J-Hooks | E106: DV-515J2000 | F106: 2 | G106: 4x12 | H106: ST-1172-0412 | I106: 27.01
A107: Thermopan Header | B107: TP-16013 | C107: 3.3 | D107: 2" Concentric Kit | E107: DV-CVENT2 | F107: 43.55 | G107: 6x14 | H107: ST-1172-0614 | I107: 27.01
D108: 3" PVC - 10' Sections | E108: BR-6081 | F108: 4.19 | G108: 6x12 | H108: ST-1172-0612 | I108: 27.01
A109: FLEX | D109: 3" PVC 90 | E109: BR-0419 | F109: 9.26
A110: 4" | B110: FX-4KPR8 | C110: 46.6 | D110: 3" PVC 45 | E110: BR-0417 | F110: 6.45 | G110: Stick-On Long Collars(w/dampers)
A111: 6" | B111: FX-6KPR8 | C111: 54.1 | D111: 3" PVC Coupling | E111: BR-0415 | F111: 3.5 | G111: 4" | H111: ST-302-04 | I111: 9.24
A112: 7" | B112: FX-7KPR8 | C112: 59.59 | D112: 3" J-Hooks | E112: DV-515J3000 | F112: 2.29 | G112: 6" | H112: ST-302-06 | I112: 9
A113: 8" | B113: FX-8KPR8 | C113: 66.37 | D113: 3"-2" PVC reducer | E113: BR-0414 | F113: 5.09 | G113: 7" | H113: ST-302-07 | I113: 9.14
A114: 10" | B114: FX-10KPR8 | C114: 80.59 | D114: 3" Concentric Kit | E114: DV-CVENT3 | F114: 60.55 | G114: 8" | H114: ST-302-08 | I114: 10.83
A115: 12" | B115: FX-12KPR8 | C115: 95.68 | G115: 10" | H115: ST-302-10 | I115: 15.13
A116: 14" | B116: FX-14KPR8 | C116: 117.69 | D116: Register Starting Collars | G116: 12" | H116: ST-302-12 | I116: 17.41
A117: 16" | B117: FX-16KPR8 | C117: 141.12 | D117: 4x10 | E117: ST-PH101-0410 | F117: 8.96 | G117: 14" | H117: ST-302-14 | I117: 20.17
D118: 4x12 | E118: ST-PH101-0412 | F118: 9.83 | G118: 16" | H118: ST-302-16 | I118: 27.51
A119: Elbows for Round Pipe
A120: 4" | B120: ST-ELV-3004 | C120: 2.36 | D120: Starting Collars | G120: Alum. Bath Flex (25')
A121: 6" | B121: ST-ELV-3006 | C121: 2.41 | D121: 10X8 | E121: ST-1200-0808 | F121: 9.51 | G121: 4" | H121: FX-4MC | I121: 18.76
A122: 7" | B122: ST-ELV-3007 | C122: 3.2 | D122: 10x8 | E122: ST-1200-1008 | F122: 9.79 | G122: 3" | H122: FX-3MC | I122: 15.4
A123: 8" | B123: ST-ELV-3008 | C123: 3.82 | D123: 12x8 | E123: ST-1200-1208 | F123: 10.03
A124: 10" | B124: ST-ELV-3010 | C124: 7.52 | D124: 14x8 | E124: ST-1200-1408 | F124: 10.55 | G124: Roof Jack
A125: 12" | B125: ST-ELV-2612 | C125: 12.24 | D125: 16X8 | E125: ST-1200-1608 | F125: 10.7 | G125: Small | H125: BF-636 | I125: 21.69
A126: 14" | B126: ST-ELV-2614 | C126: 15.8 | D126: 18x8 | E126: ST-1200-1808 | F126: 12.69 | G126: Large | H126: BF-634 | I126: 44.35
A127: 16" | B127: ST-ELV-2616 | C127: 23 | D127: 20x8 | E127: ST-1200-2008 | F127: 13.98 | G127: 3" Rubber Plumber Flashing | H127: DV-5-11866 | I127: 13.9
D128: 24x8 | E128: ST-1200-2208 | F128: 15.27
A129: Return Air Frames | D129: 20x10 | E129: ST-1200-2408 | F129: 15.56 | G129: Evolution Zone Dampers
A130: 12x6 | B130: ST-31HC-0610 | C130: 6.99 | D130: 24x10 | E130: ST-1200-2410 | F130: 17.13 | G130: 6" | H130: DAMPRND06INC | I130: 205
A131: 14x6 | B131: ST-31HC-0614 | C131: 5.29 | D131: 24x12 | E131: ST-1200-2412 | F131: 23.69 | G131: 8" | H131: DAMPRND08INC | I131: 205
A132: 24x6 | B132: ST-33HC-0824 | C132: 7.05 | D132: 30x12 | E132: ST-1200-3012 | F132: 36.83 | G132: 10" | H132: DAMPRND10INC | I132: 213
A133: 30x6 | B133: ST-33HC-0630 | C133: 5.13 | G133: 12" | H133: DAMPRND12INC | I133: 213
A134: 30x10 | B134: ST-33HC-3008 | C134: 6.69 | D134: Manual Damp. - Rnd Pipe | G134: 14" | H134: DAMPRND14INC | I134: 218
A135: 30x12 | B135: ST-33HC-3012 | C135: 22.34 | D135: 4" | E135: ST-180-2-04 | F135: 4.81 | G135: 16" | H135: DAMPRND16INC | I135: 218
A136: 30x8 | B136: ST-33HC-3008 | C136: 6.69 | D136: 6" | E136: ST-180-2-06 | F136: 5.07 | G136: 8" x 10" | H136: DAMPREC08X10 | I136: 284
A137: 12x12 | B137: ST-33HC-1212 | C137: 7.42 | D137: 7" | E137: ST-180-2-07 | F137: 5.29 | G137: 8" x 14" | H137: DAMPREC08X14 | I137: 284
A138: 14x14 | B138: ST-33HC-1414 | C138: 8.94 | D138: 8" | E138: ST-180-2-08 | F138: 6.61 | G138: 8" x 18" | H138: DAMPREC08X18 | I138: 291
A139: 16x16 | B139: ST-33HC-1616 | C139: 11.23 | D139: 10" | E139: ST-180-2-10 | F139: 7.72 | G139: 8" x 24" | H139: DAMPREC08X24 | I139: 291
A140: 20x20 | B140: ST-33HC-2020 | C140: 21.41 | D140: 12" | E140: ST-180-2-12 | F140: 9.25 | G140: 10" x 10" | H140: DAMPREC10X10 | I140: 286.27
D141: 14" | E141: ST-180-2-14 | F141: 1.54 | G141: 10" x 14" | H141: DAMPREC10X14 | I141: 303
A142: Stick-on Saddle Collars | D142: 16" | E142: ST-180-2-16 | F142: 13.19 | G142: 10" x 18" | H142: DAMPREC10X18 | I142: 311
A143: 4" | B143: ST-305-04 | C143: 7.06 | G143: 10" x 24" | H143: DAMPREC10X24 | I143: 311
A144: 6" | B144: ST-305-06 | C144: 7.42 | D144: Spiral Couplings/Accessories
A145: 7" | B145: ST-305-07 | C145: 7.72 | D145: 10" spiral coupling | E145: LSM-SC10 | F145: 10.13 | G145: Manual Dampers
A146: 8" | B146: ST-305-08 | C146: 10.55 | D146: 12" spiral coupling | E146: LSM-SC12 | F146: 10.91
A147: 10" | B147: ST-305-10 | C147: 12.53 | D147: 14" spiral coupling | E147: LSM-SC14 | F147: 18.56 | G147: 24x8 | H147: ST-182-2408 | I147: 27.65
A148: 12" | B148: ST-305-12 | C148: 15.89 | D148: 16" spiral coupling | E148: LSM-SC16 | F148: 14.04 | G148: 22x8 | H148: ST-182-2208 | I148: 26.31
A149: 14" | B149: ST-305-14 | C149: 17.86 | D149: Wire Clutchers | E149: DUR-30351 | F149: 5.58 | G149: 20x8 | H149: ST-182-2008 | I149: 23.2
D150: Roll Steel Braided Cable | E150: DUR-30202 | F150: 177.83 | G150: 18x8 | H150: ST-182-1808 | I150: 25.01
A151: Dryer Vent Box | D151: 4x12 spiral register | E151: TRU-SU2A12X4 | F151: 87.15 | G151: 16x8 | H151: ST-182-1608 | I151: 21.72
A152: (2x4 wall box) | B152: ST-DVB350 | C152: 36.29 | D152: 6x12 spiral register | E152: TRU-SU2A12X6 | F152: 139.01 | G152: 14x8 | H152: ST-182-1408 | I152: 21.72
A153: (2x6 wall box) | B153: ST-DVB425 | C153: 36.29 | G153: 12x8 | H153: ST-182-1208 | I153: 21.05
D154: Makeup Air Damper Kit | G154: 10X8 | H154: ST-182-1008 | I154: 20.31
A155: Spiral Pipe | D155: Broan 6" | E155: NU-MD6TU | F155: 200.97
A156: 4" | B156: LSM-SP04 | C156: 23.28 | D156: Broan 8" | E156: NU-MD8TU | F156: 204.28
A157: 6" | B157: LSM-SP06 | C157: 34.01 | D157: Broan 10" | E157: NU-MD10TU | F157: 262.4
A158: 7" | B158: LSM-SP07 | C158: 42.23
A159: 8" | B159: LSM-SP08 | C159: 70.8
A160: 10" | B160: LSM-SP10 | C160: 55.62
A161: 12" | B161: LSM-SP12 | C161: 63.33
A162: 14" | B162: LSM-SP14 | C162: 75.33
A163: 16" | B163: LSM-SP16 | C163: 100.99
A165: Standard Lineset - 3/4" Insul
A166: 5/8"x3/8"x40' | B166: LS-583840-12 | C166: 250.71
A167: 5/8"x3/8"x50' | B167: LS-583850-12 | C167: 328.44
A168: 3/4"x3/8"x40' | B168: LS-343840-12 | C168: 295.29
A169: 3/4"x3/8"x50' | B169: LS-343850-12 | C169: 388.19
A170: 7/8"x3/8"x40' | B170: LS-783840-12 | C170: 356.73
A171: 7/8"x3/8"x50' | B171: LS-783850-12 | C171: 479.51
A172: 2" Lineset Clamps | B172: TP-41125 | C172: 1.49
A174: Minisplit Lineset
A175: 3/8"x1/4"x25' | B175: LS-MS381425-12EZ | C175: 180.44
A176: 3/8"x1/4"x50' | B176: LS-MS381450-12EZ | C176: 329.49
A177: 1/2"x1/4"x25' | B177: LS-MS121425-12EZ | C177: 185.8
A178: 1/2"x1/4"x50' | B178: LS-MS121450-12EZ | C178: 350.39
A179: 5/8"x3/8"x25' | B179: LS-MS583825-12EZ | C179: 228.24
A180: 5/8"x3/8"x50' | B180: LS-MS583850-12EZ | C180: 385.13
A181: 3/4"x3/8/35' | B181: LS-MS343835-12EZ | C181: 227.86
A182: 3/4"x3/8/50' | B182: LS-MS343850-12EZ | C182: 451.39

Sheet F Cost
A1: Finish Material Order
C3: PO: | F3: Deliver On:
A6: Notes:
A7: Add following equipment previously purchased to delivery: | B7: Ticket # | C7: Job PO | D7: Qty | E7: Model | F7: Serial #
C10: COST | D10: Side Wall Registers | F10: COST | G10: Exterior Exhaust Caps | I10: COST
A11: OUTDOOR UNIT | D11: 4x10 | E11: LI-10V10X4 | F11: 5.73 | G11: 4" Brown Exhaust | H11: DE-HS4B | I11: 2.82
D12: 4x12 | E12: LI-10V12X4 | F12: 6.19 | G12: 4" White Exhaust | H12: DE-HS4W | I12: 2.74
D13: 4x14 | E13: LI-10V14X4 | F13: 9.75 | G13: 6" White Exhaust | H13: DE-HS6W | I13: 4.72
A14: AC Poles: | B14: SPS-2/POLE | C14: 11.21 | D14: 6x10 | E14: LI-10V10X6 | F14: 6.04 | G14: 6" Brown Exhuast | H14: DE-HS6B | I14: 4.72
A15: Pole End Cap | B15: SPS-2/CAP | C15: 3.85 | D15: 6x12 | E15: LI-10V12X6 | F15: 7.42
A16: Locking Caps: | B16: CD2290 | C16: 7.45 | D16: 6x14 | E16: LI-10V14X6 | F16: 9.99
A17: 6' UV Armor Flex - 3/4" | B17: P809-T03434 | C17: 18.55
A18: 6' UV Armor Flex - 7/8" | C18: 20.22 | D18: Floor Registers | G18: Exterior Intake Caps
A19: Clear Silicone | B19: BO-370C | C19: 7.08 | D19: 4x10 | E19: LI-414X10 | F19: 4.36 | G19: 6" White Intake | H19: DE-HSM6W | I19: 6.76
A20: White Silicone | B20: BO-370W | C20: 7.08 | D20: 4x12 | E20: LI-414x12 | F20: 5.59 | G20: 6" Brown Intake | H20: DE-HSM6B | I20: 6.97
A21: Thumb Gum: | B21: P904-0303 | C21: 7.22 | D21: 4x14 | E21: LI-414x14 | F21: 9.75
A22: Finish Filter 16x25x4: | B22: HW-FC100A1029 | C22: 35.38 | D22: 6x10 | E22: LI-416x10 | F22: 15.83
A23: Finish Filter 20x25x4: | B23: HW-FC100A1037 | C23: 35.38 | D23: 6x12 | E23: LI-416x12 | F23: 11.57
A24: Finish Filter 24x25x4: | B24: FILXUMC112425 | C24: 38.47 | D24: 6x14 | E24: LI-416x14 | F24: 11.33 | G24: Toe Kick Registers
A25: Finish Filter 16x20x4: | B25: HW-FC100A1003 | C25: 34.69 | G25: 2x10 | H25: LI-41F2X10 | I25: 6.54
A26: Finish Filter 20x20x4: | B26: HW-FC100A1011 | C26: 35.38 | D26: Floor Return Grates | G26: 2x12 | H26: LI-41F2X12 | I26: 6.69
D27: 6x12 | E27: LI-356x12 | F27: 21.12
A28: Return Air Grills | D28: 6x14 | E28: LI-356x14 | F28: 22.24
A29: 12x6 | B29: LI-19H12X6 | C29: 5.88 | D29: 30x10 | E29: LI-3510x30 | F29: 50.84
A30: 14x6 | B30: LI-19H14X6 | C30: 4.48 | D30: 30x12 | E30: LI-3512x30 | F30: 62.37 | G30: Soffit Caps
A31: 24x6 | B31: LI-19H24X6 | C31: 9.12 | D31: 14X14 | E31: LI-3514X14 | F31: 47.03 | G31: Under-eve Vents | H31: DE-EVE | I31: 7.85
A32: 30x6 | B32: LI-19H30X6 | C32: 9.99
A33: 12x12 | B33: LI-19H12X12 | C33: 10.32 | D33: Condenser Pads | G33: 2x2 Supply Lay-In
A34: 30x10 | B34: LI-19H30X10 | C34: 18.96 | D34: 6" Adjust Pump-Ups | E34: DV-HPR6-2P | F34: 5.46 | G34: 2x2x6" | H34: KR-1450F2306 | I34: 65.5
A35: 30x12 | B35: LI-19H30x12 | C35: 21.1 | D35: 24X24 | E35: P143-E2424 | F35: 17.66 | G35: 2x2x8" | H35: KR-1450F2306 | I35: 65.5
A36: 14x14 | B36: LI-19H14x14 | C36: 12.87 | D36: 30X30 | E36: P143-E3030 | F36: 27.78 | G36: 2x2x10" | H36: KR-1450F2310 | I36: 65.5
A37: 16x16 | B37: LI-19H16x16 | C37: 18.41 | D37: 32X32 | E37: P143-E3232 | F37: 29.3 | G37: 2x2x12" | H37: KR-1450F2312 | I37: 65.5
A38: 20x20 | B38: LI-19H20x20 | C38: 17.23 | D38: 36X36 | E38: P143-E3636 | F38: 35.14
G39: Return Lay-In (Perforated one piece)
A40: THERMOSTATS | D40: Wall Brackets | G40: 2x2x6" | H40: KR-6690F2306 | I40: 49.41
A41: EcoBee 6 | B41: EB-STATE6IBR-01 | C41: 229 | D41: MiniSplit Wall Bracket | E41: QKS-QSWB2000 | F41: 194.9 | G41: 2x2x8" | H41: KR-6690F2308 | I41: 49.41
A42: T6 Pro | B42: HW-TH6210U2001 | C42: 84 | D42: 36" wall bracket | E42: DV-ACB36 | F42: 53.97 | G42: 2x2x10" | H42: KR-6690F2310 | I42: 49.41
A43: Bryant Smart Stat | B43: TSTATBBEWF-01 | C43: 90 | D43: 42" wall bracket | E43: DV-ACB42 | F43: 55.01 | G43: 2x2x12" | H43: KR-6690F2312 | I43: 50.76
A44: Evolution Thermostat | B44: SYSTXBBECC01-C | C44: 566 | D44: 48" wall bracket | E44: DV-ACB48 | F44: 71.15 | G44: 2x2x14" | H44: KR-6690F2314 | I44: 50.76
A45: Evolution Smart Sensor | B45: SYSTXBB4ZC01 | C45: 466 | D45: Minisplit Stand | E45: QKS-QSMA1201 | F45: 244.86
A46: Santa Fe Dehum Controller | B46: UA-DEH3000R | C46: 300.19 | D46: 18X38 Pad for Stand | E46: P143-E1838 | F46: 20.86
D187: 2x2 Metal Return Box (for grid celing) | G187: Additional Items
A188: 2x2 Supply Lay-in | D188: 2x2 box (not insulated) | G188: Roll 1/8"steel braided cable
A189: 4" neck | D189: 2x2 box (insulated) | G189: Cable Locks for 1/8" (Clutchers)
A190: 6" neck | D190: 2x2 plastic egg crate | G190: 10’- Unistrut-heavy guage
A191: 7" neck | G191: 1 box 3/8th nuts
A192: 8" neck | G192: 1 box 3/8ths washer
A193: 10" neck | G193: 10’ - 3/8th threaded rod
A194: 12" neck
A196: Radial Dampers for Lay-Ins
A197: PRN1006 - 6"
A198: PRN1008 - 8"
A199: PRN1010 - 10"
A200: PRN1012 - 12"
A201: PRN1014 - 14"

Sheet Furnace
C2: Bryant Condensing 90+ Furnaces
C4: Model Number | D4: BTU Out (High) | E4: BTU Out (Low) | F4: Height | G4: Depth | H4: Width | I4: Price
B5: Preferred - 96% - 2-Stage Variable Speed Constant Torque ECM | C5: 926TC30040V14 | D5: 39000 | E5: 25000 | F5: 35" | G5: 29 1/2" | H5: 14" | I5: 1932
C6: 926TC36040V17 | D6: 39000 | E6: 25000 | F6: 35" | G6: 29 1/2" | H6: 17" | I6: 1966
C7: 926TC36060V14 | D7: 58000 | E7: 38000 | F7: 35" | G7: 29 1/2" | H7: 14" | I7: 1997
B9: Preferred - 97% - 2-Stage Variable Speed Constant Torque ECM | C9: 927TA48060V17 | D9: 58000 | E9: 38000 | F9: 35" | G9: 29 1/2" | H9: 17" | I9: 2286
C10: 927TA48080V17 | D10: 78000 | E10: 50000 | F10: 35" | G10: 29 1/2" | H10: 17" | I10: 2315
C11: 927TA60080V21 | D11: 78000 | E11: 50000 | F11: 35" | G11: 29 1/2" | H11: 21" | I11: 2380
C12: 927TA60100V21 | D12: 97000 | E12: 63000 | F12: 35" | G12: 29 1/2" | H12: 21" | I12: 2446
C13: 927TA66100V21 | D13: 97000 | E13: 63000 | F13: 35" | G13: 29 1/2" | H13: 21" | I13: 2639
C14: 927TA66120V24 | D14: 117000 | E14: 76000 | F14: 35" | G14: 29 1/2" | H14: 24" | I14: 2642
B16: Evolution - Modulating - Up to 98% AFUE Variable Speed Constant Airflow ECM | C16: 987MC42060C17 | D16: 59000 | E16: 24000 | F16: 35" | G16: 29 1/2" | H16: 17" | I16: 2824
C17: 987MC42080C17 | D17: 78000 | E17: 31000 | F17: 35" | G17: 29 1/2" | H17: 17" | I17: 2861
C18: 987MC60080C21 | D18: 78000 | E18: 31000 | F18: 35" | G18: 29 1/2" | H18: 21" | I18: 3100
C19: 987MC66100C21 | D19: 98000 | E19: 39000 | F19: 35" | G19: 29 1/2" | H19: 21" | I19: 3358
C20: 987MC66120C24 | D20: 117000 | E20: 47000 | F20: 35" | G20: 29 1/2" | H20: 24" | I20: 3544
B22: Evolution - 97% - 2-Stage Variable Speed Constant Airflow ECM | C22: 987TA48060C17 | D22: 58000 | E22: 38000 | F22: 35" | G22: 29 1/2" | H22: 17" | I22: 2575
C23: 987TA48080C17 | D23: 78000 | E23: 50000 | F23: 35" | G23: 29 1/2" | H23: 17" | I23: 2807
C24: 987TA60080C21 | D24: 78000 | E24: 51000 | F24: 35" | G24: 29 1/2" | H24: 21" | I24: 2910
C25: 987TA66100C21 | D25: 98000 | E25: 63000 | F25: 35" | G25: 29 1/2" | H25: 21" | I25: 3042
C26: 987TA66120C24 | D26: 117000 | E26: 76000 | F26: 35" | G26: 29 1/2" | H26: 24" | I26: 3252
B28: Legacy 96% Multipoise Single Stage 18 Speed Constant Torque ECM | C28: 916SA30026M14 | D28: 25000 | F28: 35" | G28: 29 1/2" | H28: 14" | I28: 1539
C29: 916SA30040M14 | D29: 39000 | F29: 35" | G29: 29 1/2" | H29: 14" | I29: 1550
C30: 916SA36040M17 | D30: 39000 | F30: 35" | G30: 29 1/2" | H30: 14" | I30: 1575
C31: 916SA36060M14 | D31: 56000 | F31: 35" | G31: 29 1/2" | H31: 14" | I31: 1595
C32: 916SA48060M17 | D32: 58000 | F32: 35" | G32: 29 1/2" | H32: 17" | I32: 1617
C33: 916SA48080M17 | D33: 78000 | F33: 35" | G33: 29 1/2" | H33: 17" | I33: 1787
C34: 916SA60080M21 | D34: 78000 | F34: 35" | G34: 29 1/2" | H34: 21" | I34: 1795
C35: 916SA60100M21 | D35: 97000 | F35: 35" | G35: 29 1/2" | H35: 21" | I35: 2021
C36: 916SA66100M21 | D36: 97000 | F36: 35" | G36: 29 1/2" | H36: 21" | I36: 2208
C37: 916SA66120M24 | D37: 116000 | F37: 35" | G37: 29 1/2" | H37: 24" | I37: 2245
C38: 916SA66140M24 | D38: 135000 | F38: 35" | G38: 29 1/2" | H38: 24" | I38: 2301
B40: Legacy 92% Multipoise Single Stage 18 Speed Constant Torque ECM | C40: 912SE36040M14 | D40: 37000 | F40: 35" | G40: 29 1/2" | H40: 14" | I40: 1538
C41: 912SE36040M17 | D41: 37000 | F41: 35" | G41: 29 1/2" | H41: 17" | I41: 1541
C42: 912SE36060M14 | D42: 56000 | F42: 35" | G42: 29 1/2" | H42: 14" | I42: 1585
C43: 912SE42060M17 | D43: 56000 | F43: 35" | G43: 29 1/2" | H43: 17" | I43: 1626
C44: 912SE48080M17 | D44: 75000 | F44: 35" | G44: 29 1/2" | H44: 17" | I44: 1733
C45: 912SE60080M21 | D45: 75000 | F45: 35" | G45: 29 1/2" | H45: 21" | I45: 1801
C46: 912SE60100M21 | D46: 93000 | F46: 35" | G46: 29 1/2" | H46: 21" | I46: 2001
C47: 912SE66100M21 | D47: 93000 | F47: 35" | G47: 29 1/2" | H47: 21" | I47: 2162
C48: 912SE60120M24 | D48: 112000 | F48: 35" | G48: 29 1/2" | H48: 24" | I48: 2167
C51: Furnace - Coil Transition Adapters
C52: Item Number | D52: Description | G52: Price
C53: FAB-CAT-SMALL5 | D53: 14-3/6" x 17-1/2" x 5" Centered Transition | G53: 28
C54: FAB-CAT-SMALL5-FOS | D54: 14-3/6" x 17-1/2" x 5" Flat On One Side | G54: 28
C55: FAB-CAT-SMALL5-ST | D55: 14-3/6" x 14 3/16" x 5" Straight | G55: 28
C57: FAB-CAT-MEDIUM5 | D57: 17-1/2" x 21" x 5" Centered Transition | G57: 28
C58: FAB-CAT-MEDIUM5-FOS | D58: 17-1/2" x 21" x 5" Flat On One Side | G58: 28
C59: FAB-CAT-MEDIUM5-ST | D59: 17-1/2" x 17 1/2" x 5" Straight | G59: 28
C61: FAB-CAT-LARGE5 | D61: 21" x 24-1/2" x 5" Centered Transition | G61: 28
C62: FAB-CAT-LARGE5-FOS | D62: 21" x 24-1/2" x 5" Flat On One Side | G62: 28
C63: FAB-CAT-LARGE5-ST | D63: 21" x 21" x 5" Straight | G63: 28
C65: FAB-CAT-XLARGE5-FOS | D65: 24 1/2" x 24-1/2" x 5" Straight | G65: 28

Sheet Coil
C2: Bryant R454B Evaporator Coils
C4: Model Number | D4: Ton | E4: Height | F4: Width | G4: Depth | H4: Price
B5: Puron Advance R454B Vertical Cased Vertical "V" Aluminum Coil with TXV | C5: CVAVA1814XMA | D5: 1.5 | E5: 14-11/16 | F5: 14" | G5: 20-5/8 | H5: 545
C6: CVAVA2414XMA | D6: 2 | E6: 14-11/16 | F6: 14" | G6: 20-5/8 | H6: 588
C7: CVAVA2417XMA | D7: 2 | E7: 14-11/16 | F7: 17" | G7: 20-5/8 | H7: 602
C8: CVAVA2517XMA | D8: 2 | E8: 19-7/16 | F8: 17" | G8: 20-5/8 | H8: 938
C9: CVAVA3014XMA | D9: 2.5 | E9: 17-1/16 | F9: 14" | G9: 20-5/8 | H9: 642
C10: CVAVA3017XMA | D10: 2.5 | E10: 19-7/16 | F10: 17" | G10: 20-5/8 | H10: 642
C11: CVAVA3117XMA | D11: 2.5 | E11: 25-13/16 | F11: 17" | G11: 20-5/8 | H11: 999
C12: CVAVA3617XMA | D12: 3 | E12: 19-7/16 | F12: 17" | G12: 20-5/8 | H12: 687
C13: CVAVA3621XMA | D13: 3 | E13: 19-1/16 | F13: 21" | G13: 20-5/8 | H13: 717
C14: CVAVA3721XMA | D14: 3 | E14: 21-15/16 | F14: 21" | G14: 20-5/8 | H14: 870
C15: CVAVA3817XMA | D15: 3 | E15: 29-3/4 | F15: 17" | G15: 20-5/8 | H15: 887
C16: CVAVA4217XMA | D16: 3.5 | E16: 19-1/4 | F16: 17" | G16: 20-5/8 | H16: 720
C17: CVAVA4221XMA | D17: 3.5 | E17: 19-1/6 | F17: 21" | G17: 20-5/8 | H17: 748
C18: CVAVA4224XMA | D18: 3.5 | E18: 26-5/16 | F18: 24" | G18: 20-5/8 | H18: 803
C19: CVAVA4821XMA | D19: 4 | E19: 21-15/16 | F19: 21" | G19: 20-5/8 | H19: 854
C20: CVAVA4824XMA | D20: 4 | E20: 22-1/16 | F20: 24" | G20: 20-5/8 | H20: 881
C21: CVAVA4924XMA | D21: 4 | E21: 26-5/16 | F21: 24" | G21: 20-5/8 | H21: 1032
C22: CVAVA6021XMA | D22: 5 | E22: 29-3/4 | F22: 21" | G22: 20-5/8 | H22: 998
C23: CVAVA6024XMA | D23: 5 | E23: 26-5/16 | F23: 24" | G23: 20-5/8 | H23: 1011
C24: CVAVA6121XMA | D24: 5 | E24: 35 | F24: 21" | G24: 20-5/8 | H24: 1201
C25: CVAVA6124XMA | D25: 5 | E25: 35 | F25: 24" | G25: 20-5/8 | H25: 1214
B27: Puron Advance R454B Multipoise Cased Multi-Poise "V" Aluminum Coil with TXV | C27: CVAMA2414XMA | D27: 2 | E27: 14-11/16 | F27: 14" | G27: 20-5/8 | H27: 717
C28: CVAMA2417XMA | D28: 2 | E28: 14-11/16 | F28: 17" | G28: 20-5/8 | H28: 726
C29: CVAMA2517XMA | D29: 2 | E29: 19-7/16 | F29: 17" | G29: 20-5/8 | H29: 737
C30: CVAMA3017XMA | D30: 2.5 | E30: 19-7/16 | F30: 17" | G30: 20-5/8 | H30: 787
C31: CVAMA3117XMA | D31: 2.5 | E31: 25-13/16 | F31: 17" | G31: 20-5/8 | H31: 795
C32: CVAMA3217XMA | D32: 2.5 | E32: 29-3/4 | F32: 17" | G32: 20-5/8 | H32: 1046
C33: CVAMA3617XMA | D33: 3 | E33: 19-7/16 | F33: 17" | G33: 20-5/8 | H33: 859
C34: CVAMA4221XMA | D34: 3.5 | E34: 19-1/16 | F34: 21" | G34: 20-5/8 | H34: 1009
C35: CVAMA4321XMA | D35: 3.5 | E35: 21-15/16 | F35: 21" | G35: 20-5/8 | H35: 1022
C36: CVAMA4421XMA | D36: 3.5 | E36: 29-3/4 | F36: 21" | G36: 20-5/8 | H36: 1226
C37: CVAMA4821XMA | D37: 4 | E37: 21-15/16 | F37: 21" | G37: 20-5/8 | H37: 1073
C38: CVAMA4921XMA | D38: 4 | E38: 29-3/4 | F38: 21" | G38: 20-5/8 | H38: 1083
C39: CVAMA6021XMA | D39: 5 | E39: 29-3/4 | F39: 24" | G39: 20-5/8 | H39: 1193
C40: CVAMA6024XMA | D40: 5 | E40: 26-5/16 | F40: 24" | G40: 20-5/8 | H40: 1204
C41: CVAMA6124XMA | D41: 5 | E41: 35 | F41: 24" | G41: 20-5/8 | H41: 1363
B43: Puron Advance R454B Multipoise Cased Multi-Poise "A" Aluminum Coil with TXV | C43: CAAMP2414AMA | D43: 2 | E43: 25-13/16 | F43: 14" | G43: 20-5/8 | H43: 825
C44: CAAMP2417AMA | D44: 2 | E44: 25-13/16 | F44: 17" | G44: 20-5/8 | H44: 836
C45: CAAMP2517AMA | D45: 2 | E45: 29-3/4 | F45: 17" | G45: 20-5/8 | H45: 1006
C46: CAAMP3014AMA | D46: 2.5 | E46: 25-13/16 | F46: 14" | G46: 20-5/8 | H46: 947
C47: CAAMP3017AMA | D47: 2.5 | E47: 25-13/16 | F47: 17" | G47: 20-5/8 | H47: 958
C48: CAAMP3617AMA | D48: 3 | E48: 29-3/4 | F48: 17" | G48: 20-5/8 | H48: 978
C49: CAAMP3717AMA | D49: 3 | E49: 25-3/16 | F49: 17" | G49: 20-5/8 | H49: 1061
C50: CAAMP3721AMA | D50: 3 | E50: 29-3/4 | F50: 17" | G50: 20-5/8 | H50: 1088
C51: CAAMP4221AMA | D51: 3.5 | E51: 29-3/4 | F51: 21" | G51: 20-5/8 | H51: 1087
C52: CAAMP4321AMA | D52: 3.5 | E52: 29-3/4 | F52: 21" | G52: 20-5/8 | H52: 1200
C53: CAAMP4821AMA | D53: 4 | E53: 29-3/4 | F53: 21" | G53: 20-5/8 | H53: 1113
C54: CAAMP6024AMA | D54: 5 | E54: 35 | F54: 24" | G54: 20-5/8 | H54: 1096
C55: CAAMP6121AMA | D55: 5 | E55: 35 | F55: 21" | G55: 20-5/8 | H55: 1357
C56: CAAMP6124AMA | D56: 5 | E56: 35 | F56: 24" | G56: 20-5/8 | H56: 1369
B58: Puron Advance R454B Horizontal Cased Slab Coil | C58: CSAHP2412AMA | D58: 2 | E58: 28-3/8 | F58: 11-3/4 | G58: 24-1/16 | H58: 780
C59: CSAHP3012AMA | D59: 2.5 | E59: 28-3/8 | F59: 11-3/4 | G59: 24-1/16 | H59: 890
C60: CSAHP3612AMA | D60: 3 | E60: 28-3/8 | F60: 11-3/4 | G60: 28-13/16 | H60: 922
C61: CSAHP4212AMA | D61: 3.5 | E61: 28-3/8 | F61: 11-3/4 | G61: 28-13/16 | H61: 1037
C62: CSAHP4812AMA | D62: 4 | E62: 30-3/8 | F62: 11-3/4 | G62: 28-13/16 | H62: 1084
C63: CSAHP6012AMA | D63: 5 | E63: 30-3/8 | F63: 11-3/4 | G63: 38-15/16 | H63: 1204

Sheet Air Handler
C2: Bryant Fan Coils
C4: Model Number | D4: Capacity | E4: Height | F4: Width | G4: Depth | H4: Filter Size | I4: Coil Type | J4: Price
B5: Evolution Variable Speed Fan Coils with TXV and Filter | C5: FE5BNXB24L00 | D5: 2 | E5: 43" | F5: 17" | G5: 22" | H5: 16 x 20 | I5: A | J5: 1978
C6: FE5BNXC36L00 | D6: 3 | E6: 53" | F6: 21" | G6: 22" | H6: 20 x 20 | I6: Slope | J6: 2210
C7: FE5BNXC48L00 | D7: 4 | E7: 53" | F7: 21" | G7: 22" | H7: 20 x 20 | I7: A | J7: 2594
C8: FE5BNBD60L00 | D8: 5 | E8: 59" | F8: 24" | G8: 22" | H8: 24 x 20 | I8: A | J8: 2837
B10: Preferred Series Variable Speed Fan Coils with TXV and Filter - InteliSense Technology | C10: FT5ANXB24L00 | D10: 2 | E10: 43 | F10: 17" | G10: 22" | H10: 16 x 20 | I10: A | J10: 1884 | N10: Note: These Fan Coils use the KFFEH or Tutco EC Series Electric Heaters Only
C11: FT5ANXC36L00 | D11: 3 | E11: 54 | F11: 21" | G11: 22" | H11: 20 x 20 | I11: Slope | J11: 2112
C12: FT5ANXC48L00 | D12: 4 | E12: 54 | F12: 21" | G12: 22" | H12: 20 x 20 | I12: A | J12: 2413
C13: FT5ANBD60L00 | D13: 5 | E13: 59 | F13: 24" | G13: 22" | H13: 24 x 20 | I13: A | J13: 2812
B15: Legacy Series Fan Coils with TXV and Filter | C15: FJ5ANXA18L00 | D15: 1.5 | E15: 43" | F15: 14" | G15: 22" | H15: 13 X 20 | I15: Slope | J15: 1120
C16: FJ5ANXB24L00 | D16: 2 | E16: 50" | F16: 17" | G16: 22" | H16: 16 X 20 | I16: Slope | J16: 1221
C17: FJ5ANXB30L00 | D17: 2.5 | E17: 50" | F17: 17" | G17: 22" | H17: 16 X 20 | I17: A | J17: 1269
C18: FJ5ANXB36L00 | D18: 3 | E18: 50" | F18: 17" | G18: 22" | H18: 16 X 20 | I18: A | J18: 1504
C19: FJ5ANXC42L00 | D19: 3.5 | E19: 54" | F19: 21" | G19: 22" | H19: 20 x 20 | I19: A | J19: 1713
C20: FJ5ANXC48L00 | D20: 4 | E20: 54" | F20: 21" | G20: 22" | H20: 20 x 20 | I20: A | J20: 1938
C21: FJ5ANXD60L00 | D21: 5 | E21: 59" | F21: 24" | G21: 22" | H21: 24 X 20 | I21: A | J21: 2320
B23: Multifamily/Apartment Wall-Hung Fan Coil with TXV and Filter | C23: FMA5X1800AL | D23: 1.5 | E23: 37" | F23: 21" | G23: 15" | H23: 16 x 20 | I23: Slope | J23: 1289
C24: FMA5X2400AL | D24: 2 | E24: 37" | F24: 21" | G24: 15" | H24: 16 x 20 | I24: Slope | J24: 1352
C25: FMA5X3000AL | D25: 2.5 | E25: 37" | F25: 22 | G25: 19" | H25: 20 x 20 | I25: Slope | J25: 1412
C26: FMA5X3600AL | D26: 3 | E26: 37" | F26: 22 | G26: 19" | H26: 20 x 20 | I26: Slope | J26: 1498
B28: 45MBAA Multi Position Air Handler | C28: 45MBAAQ18XB3 | D28: 1.5 | E28: 45" | F28: 17" | G28: 21" | H28: 16 x 20 | J28: 1766 | K28: Use with 37MAHA or Multi ODU
C29: 45MBAAQ24XB3 | D29: 2 | E29: 45" | F29: 17" | G29: 21" | H29: 16 x 20 | J29: 1797
B31: 45MUAA Multi Position Air Handler (NextGen) | C31: 45MUAAQ18XX3 | D31: 1.5 | E31: 45" | F31: 17" | G31: 21" | H31: 16 x 20 | J31: 1522
C32: 45MUAAQ24XX3 | D32: 2 | E32: 45" | F32: 17" | G32: 21" | H32: 16 x 20 | J32: 1547
C33: 45MUAAQ30XX3 | D33: 2.5 | E33: 49" | F33: 21" | G33: 21" | H33: 16 x 20 | J33: 1691
C34: 45MUAAQ36XX3 | D34: 3 | E34: 49" | F34: 21" | G34: 21" | H34: 20 x 20 | J34: 1767
C35: 45MUAAQ48XX3 | D35: 4 | E35: 53" | F35: 21" | G35: 21" | H35: 20 x 20 | J35: 1718
C36: 45MUAAQ60XX3 | D36: 5 | E36: 53" | F36: 24" | G36: 21" | H36: 20 x 20 | J36: 1815

Sheet Geothermal
C2: Bryant R454B Geothermal Units
C4: Model Number | D4: Tons | E4: Cabinet | F4: Discharge | G4: COAX | H4: Hot Water Generator | I4: Price
B5: Evolution Package Unit - 2 stage - Variable Speed w/ dissapation system | C5: GCA24VTLCDET1DX1 | D5: 2 | E5: Vertical | F5: Top | G5: Copper | H5: Yes | I5: 6455
C6: GCA36VTLCDET1DX1 | D6: 3 | E6: Vertical | F6: Top | G6: Copper | H6: Yes | I6: 7202
C7: GCA48VTLCDET1DX1 | D7: 4 | E7: Vertical | F7: Top | G7: Copper | H7: Yes | I7: 7834
C8: GCA60VTLCDET1DX1 | D8: 5 | E8: Vertical | F8: Top | G8: Copper | H8: Yes | I8: 8672
C9: GCA72VTLCDET1DX1 | D9: 6 | E9: Vertical | F9: Top | G9: Copper | H9: Yes | I9: 8880
B11: Evolution Split Unit - 2 stage w/ dissapation system | C11: GZ024SAXCDXX1DX1 | D11: 2 | E11: Copper | G11: Yes | I11: 5049
C12: GZ036SAXCDXX1DX2 | D12: 3 | E12: Copper | G12: Yes | I12: 5688
C13: GZ048SAXCDXX1DX1 | D13: 4 | E13: Copper | G13: Yes | I13: 6225
C14: GZ060SAXCDXX1DX1 | D14: 5 | E14: Copper | G14: Yes | I14: 6677
B16: Evolution Split Unit - 2 stage w/ dissapation system | C16: GZ024SAXNDXX1DX1 | D16: 2 | E16: Cupro-Nickel | G16: Yes | I16: 5337
C17: GZ036SAXNDXX1DX2 | D17: 3 | E17: Cupro-Nickel | G17: Yes | I17: 6071
C18: GZ048SAXNDXX1DX1 | D18: 4 | E18: Cupro-Nickel | G18: Yes | I18: 6739
C19: GZ060SAXNDXX1DX1 | D19: 5 | E19: Cupro-Nickel | G19: Yes | I19: 7185
C20: GZ072SAXNDXX1DX1 | D20: 6 | E20: Cupro-Nickel | G20: Yes | I20: 7196
B22: Packaged Unit Electric Heaters | C22: KWCEH0301N05 | D22: 5 kw Electric Heater Non-fused - All Sizes | I22: 454
C23: KWCEH0301N10 | D23: 10 kw Electric Heater Non fused - All Sizes | I23: 690
C24: KWCEH0301B15 | D24: 15 kw Electric Heater w/circuit breaker - 36 thru 72 Sizes Only | I24: 693
C25: KWCEH0301B20 | D25: 20 kw Electric Heater w/circuit breaker - 48 thru 72 sizes Only | I25: 737
C28: Geothermal Accessories
B30: Flow Centers | C30: FCP11CD | D30: 1 pump flow center | I30: 746
C31: FCP21CD | D31: 2 pump flow center | I31: 1010
B34: Hose Kit | C34: HK4DM | D34: 1-in Hose Kit (Flo-Link Double O-ring @ Flow Center; MPT @ HP) | I34: 221
B36: Rubber Mounting Pad | C36: ACMP2436 | D36: 3/4-in. high density rubber equipment pad, 24-in. x 36-in. | I36: 105
C37: ACMP2836 | D37: 3/4-in. high density rubber equipment pad, 28-in. x 36-in. | I37: 142

Sheet Heater Pack
C2: ELECTRIC HEATERS FOR BRYANT FAN COIL UNITS
C4: Tutco Number | D4: Factory Number | E4: Description - Heaters to be used on FE5, FT5, FJ5 Units Only
B5: FJ5DNXA18 | C5: TU-EC-03CKN | D5: KFFEH8401N03 | E5: 3kw Heater 230v-1ph *USED ON FJ5DNXA18 Only!* | F5: 124
C6: TU-EC-05CKB | D6: KFFEH8401C05 | E6: 5kw Heater w/ C/B Protection - 230v-1ph *USED ON FJ5DNXA18 Size Only!* | F6: 214
C7: TU-EC-08CKB | D7: KFFEH8501C08 | E7: 8kw Heater w/ C/B Protection - 230v-1ph *USED ON FJ5DNXA18 Size Only!* | F7: 238
C8: TU-EC-10CKB | D8: KFFEH8601C10 | E8: 10kw Heater w/ C/B Protection - 230v-1ph *USED ON FJ5DNXA18 Size Only!* | F8: 246
B10: FJ5DNXA24 ONLY | C10: TU-EC-03BKN | D10: KFFEH0401N03 | E10: 3kw Heater - 230v-1ph* Used on 24 Size Only* | F10: 110
B12: 24-60 Size Units (FE5, FT5, FJ5) | C12: TU-EC-05BKB | D12: KFFEH2401C05 | E12: 5kw Heater w/ C/B Protection - 230v-1ph *Used on 24-60 Size units* | F12: 173
C13: TU-EC-08BKB | D13: KFFEH2501C08 | E13: 8kw Heater w/ C/B Protection - 230v-1ph *Used on 24-60 Size units* | F13: 204
C14: TU-EC-10BKB | D14: KFFEH2601C10 | E14: 10kw Heater w/ C/B Protection - 230v-1ph *Used on 24-60 Size units* | F14: 210
C15: TU-EC-15BKB | D15: KFFEH3101C15 | E15: 15kw Heater w/ C/B Protection -230v-1ph *Used on 24-60 Size Units* | F15: 353
C16: TU-EC-20BKB | D16: KFFEH3301C20 | E16: 20kw Heater w/ C/B Protection - 230v-1ph *Used on 30-60 Size Units* | F16: 446
B18: 36-60 Size Units (FE5, FT5, FJ5) 3 PHASE | C18: TU-EC-15BHN | D18: KFFEH1601315 | E18: 15kw Heater - 230v- 3 PHASE - *Used on 36-60 Size Units* | F18: 272
C19: TU-EC-18BHN | D19: KFFEH2001318 | E19: 15kw Heater - 230v- 3 PHASE - *Used on 42-60 Size Units* | F19: 467
C20: THE TWO LISTED ABOVE ARE -----****3 PHASE*****--------
B22: 48-60 Size Units (FE5, FT5, FJ5) (Can be 1 or 3 phase) | C22: TU-EC-25BHCF | D22: KFFEH3401F24 | E22: 24kw Heater w/ Fuse Protection -230v-3ph *Used on 48-60 Size Units* | F22: 674
E23: (Convertible to 1 phase)
C24: TU-EC-30BHCF | D24: KFFEH3501F30 | E24: 30kw Heater w/ Fuse Protection -230v-3ph )*Used on 48-60 Size Units* | F24: 698
E25: (Convertible to 1 phase)
B27: FMA5 Units Only MultiFamily Units | C27: TU-HK2-05B | D27: EHK2-05B | E27: 5 kw Electric Heater w/circuit breaker | F27: 113
C28: TU-HK2-08B | D28: EHK2-08B | E28: 7.5 kw Electric Heater w/circuit breaker | F28: 126
C29: TU-HK2-10B | D29: EHK2-10B | E29: 10 kw Electric Heater w/circuit breaker | F29: 141
B31: 45MBAA and 45MUAA Only | C31: EHKMC05KN | D31: For 45MUAA or 45MBAA ONLY | E31: 5kw Electric Heater - Air Handler Sizes 18,24,30,36 | F31: =VLOOKUP(C31,'[1]Cover Page'!$P$1:$Q304,2,FALSE) -> 178
C32: EHKMC08KN | D32: For 45MUAA or 45MBAA ONLY | E32: 8kw Electric Heater - Air Handler Sizes 18,24,30,36,48 | F32: =VLOOKUP(C32,'[1]Cover Page'!$P$1:$Q305,2,FALSE) -> 228
C33: EHKMC10KN | D33: For 45MUAA or 45MBAA ONLY | E33: 10kw Electric Heater - Air Handler Sizes 18,24,30,36,48,60 | F33: =VLOOKUP(C33,'[1]Cover Page'!$P$1:$Q306,2,FALSE) -> 251
C34: EHKMC15KN | D34: For 45MUAA or 45MBAA ONLY | E34: 15kw Electric Heater - Air Handler Size 24,30,36,48,60 | F34: =VLOOKUP(C34,'[1]Cover Page'!$P$1:$Q307,2,FALSE) -> 388
C35: EHKMC20KN | D35: For 45MUAA or 45MBAA ONLY | E35: 20kw Electric Heater - Air Handler Size 36,48,60 | F35: =VLOOKUP(C35,'[1]Cover Page'!$P$1:$Q308,2,FALSE) -> 458
C36: EHKMC25KN | D36: For 45MUAA or 45MBAA ONLY | E36: 25kw Electric Heater - Air Handler Size 60 | F36: =VLOOKUP(C36,'[1]Cover Page'!$P$1:$Q309,2,FALSE) -> 556
B38: Geothermal Package Unit Only | C38: KWCEH0301N05 | D38: GCA Units ONLY | E38: 5 kw Electric Heater Non-fused - All Sizes | F38: 454
C39: KWCEH0301N10 | D39: GCA Units ONLY | E39: 10 kw Electric Heater Non fused - All Sizes | F39: 690
C40: KWCEH0301B15 | D40: GCA Units ONLY | E40: 15 kw Electric Heater w/circuit breaker - 36 thru 72 Sizes Only | F40: 693
C41: KWCEH0301B20 | D41: GCA Units ONLY | E41: 20 kw Electric Heater w/circuit breaker - 48 thru 72 sizes Only | F41: 737
E56: Fan Coil Accessories
C57: KFASP0101SPK | E57: Single Point Wiring Kit (Used on KFFEH 15kw & 20kw Fused Heaters Only) | F57: 33
C59: KFADC0201SLP | E59: Downflow Conversion Kit (Slope Coil Units) | F59: 36
C60: KFADC0401ACL | E60: Downflow Conversion Kit ("A" Coil Units) | F60: 129
C61: KFAHD0101SLP | E61: Downflow/Horizontal Conversion Gasket Kit | F61: 12
C63: AFAINTHWC01A | E63: Hydronic Relay Kit - FE4/5 | F63: 161
C65: KFACB0101CFB | E65: Downflow Base Kit, 14-5/16" Wide Fan Coils | F65: 108
C66: KFACB0201CFB | E66: Downflow Base Kit, 17-5/8" Wide Fan Coils | F66: 108
C67: KFACB0301CFB | E67: Downflow Base Kit, 21-1/8" Wide Fan Coils | F67: 125
C68: KFACB0401CFB | E68: Downflow Base Kit, 24-11/16" Wide Fan Coils | F68: 133

Sheet Misc
A3: Bottom Boxes | B3: FURNACE | D3: DESCRIPTION | E3: ITEM NUMBER | F3: COST
B4: 14" | D4: Bottom Box for 14" wide furnace | E4: ST-96-142824 | F4: 81.99
B5: 17" | D5: Bottom box for 17" wide furnace | E5: ST-96-172824 | F5: 76.68
B6: 21" | D6: Bottom box for 21" wide furnace | E6: ST-96-212824 | F6: 76.68
B7: 24" | D7: Bottom box for 24" wide furnace | E7: ST-96-242824 | F7: 94.57
B8: AIR HANDLER
B9: 14" | D9: Bottom box for 14" wide x 22" deep AH | E9: ST-96-142224 | F9: 80.16
B10: 17" | D10: Bottom box for 17" wide x 22" deep AH | E10: ST-96-172224 | F10: 83.75
B11: 21" | D11: Bottom box for 21" wide x 22" deep AH | E11: ST-96-212224 | F11: 69.67
B12: 24" | D12: Bottom box for 24" wide x 22" deep AH | E12: ST-96-242224 | F12: 81.49
A15: Plenums | B15: FURNACE | D15: DESCRIPTION | E15: ITEM NUMBER | F15: COST
B16: 14" | D16: FURANCE 47" PLENUM 14 IN | E16: ST-95-121947 | F16: 102.49
B17: 17" | D17: FURNACE 47" PLENUM 17 IN | E17: ST-95-161947 | F17: 107.05
B18: 21" | D18: FURNACE 47" PLENUM 21 IN | E18: ST-95-191947 | F18: 114.3
B19: 24" | D19: FURNACE 47" PLENUM 24 IN | E19: ST-95-231947 | F19: 123.48
B20: AIR HANDLER
B21: 14" | D21: AH 47" PLENUM 14 IN | E21: ST-95-131147 | F21: 78.85
B22: 17" | D22: AH 47" PLENUM 17 IN | E22: ST-95-161147 | F22: 89.34
B23: 21" | D23: AH 47" PLENUM 21 IN | E23: ST-95-191147 | F23: 99.22
B24: 24" | D24: AH 47" PLENUM 24 IN | E24: ST-95-231147 | F24: 111.43
B25: COIL
B26: 14" | D26: 47" PLENUM 14 IN | E26: ST-95-121947 | F26: 102.49
B27: 17" | D27: 47" PLENUM 17 IN | E27: ST-95-161947 | F27: 107.05
B28: 21" | D28: 47" PLENUM 21 IN | E28: ST-95-191947 | F28: 114.3
B29: 24" | D29: 47" PLENUM 24 IN | E29: ST-95-231947 | F29: 123.48
A32: Coil Adapter/Spacer | B32: FURNACE WIDTH | C32: COIL WIDTH | D32: DESCRIPTION | E32: ITEM NUMBER | F32: COST
B33: 14" | C33: 17" | D33: 14" x 17" x 5" centered | E33: FAB-CAT-SMALL5 | F33: 28
B34: 14" | C34: 17" | D34: 14" x 17" x 5" flat one side | E34: FAB-CAT-SMALL5-FOS | F34: 28
B35: 14" | C35: 14" | D35: 14" x 14" x 5" spacer | E35: FAB-CAT-SMALL5-ST | F35: 28
B37: 17" | C37: 21" | D37: 17" x 21" x 5" centered | E37: FAB-CAT-MEDIUM5 | F37: 28
B38: 17" | C38: 21" | D38: 17" x 21" x 5" flat one side | E38: FAB-CAT-MEDIUM5-FOS | F38: 28
B39: 17" | C39: 17" | D39: 17" x 17" x 5" spacer | E39: FAB-CAT-MEDIUM5-ST | F39: 28
B41: 21" | C41: 24" | D41: 21" x 24" x 5" centered | E41: FAB-CAT-LARGE5 | F41: 28
B42: 21" | C42: 24" | D42: 21" x 24" x 5" flat one side | E42: FAB-CAT-LARGE5-FOS | F42: 28
B43: 21" | C43: 21" | D43: 21" x 21" x 5" spacer | E43: FAB-CAT-LARGE5-ST | F43: 28
B45: 24" | C45: 24" | D45: 24" x 24" x 5" spacer | E45: FAB-CAT-XLARGE5-FOS | F45: 28
D49: BLACK IRON FITTINGS
D50: 1/2" BLACK CAP | E50: PF-CAP1/2 | F50: 1.7
D51: 1/2" BLACK COUPLING | E51: PF-COUP1/2 | F51: 2.3
D52: BLACK IRON NIPPLE 1/2" X 12" | E52: PF-NIPPLE1/2X12 | F52: 5.34
D53: BLACK IRON NIPPLE 1/2" X 8" | E53: PF-NIPPLE1/2X8 | F53: 3.75
D54: 1/2" BLACK TEE | E54: PF-T1/2 | F54: 2.33
D55: 1/2" BLACK UNION | E55: PF-UN1/2 | F55: 7.52
D56: 1/2" BLACK ST 90 | E56: PF-90ST1/2 | F56: 1.85
D57: 1/2" BLACK 90 | E57: PF-901/2 | F57: 1.7

Sheet Dropdown Lists
A1: Family | B1: Size From | C1: Size To | D1: Part Number | E1: Description / Notes | F1: Phase | G1: DROPDOWN ENGINE — do not edit | J1: 3-phase packs (red)
A2: FJ5 | B2: 18 | C2: 18 | D2: TU-EC-03CKN | E2: 3kw 230v-1ph — FJ5 size 18 only | F2: 1PH | J2: =_xlfn._xlws.FILTER(HeaterPacks[Part Number],HeaterPacks[Phase]="3PH") -> TU-EC-15BHN
A3: FJ5 | B3: 18 | C3: 18 | D3: TU-EC-05CKB | E3: 5kw w/CB 230v-1ph — FJ5 size 18 only | F3: 1PH | G3: Air Handler tons (B10) | H3: =IFERROR(_xlfn.XLOOKUP('Rough In'!B10,'Air Handler'!$C:$C,'Air Handler'!$D:$D),"") -> 0 | J3: TU-EC-18BHN
A4: FJ5 | B4: 18 | C4: 18 | D4: TU-EC-08CKB | E4: 8kw w/CB 230v-1ph — FJ5 size 18 only | F4: 1PH | G4: Geo unit tons (B11) | H4: =IFERROR(_xlfn.XLOOKUP('Rough In'!B11,Geothermal!$C:$C,Geothermal!$D:$D),"") -> 0 | J4: TU-EC-25BHCF
A5: FJ5 | B5: 18 | C5: 18 | D5: TU-EC-10CKB | E5: 10kw w/CB 230v-1ph — FJ5 size 18 only | F5: 1PH | G5: Air handler family | H5: =IF(LEFT('Rough In'!B11,3)="GCA","GCA",_xlfn.IFS(LEFT('Rough In'!B10,4)="FMA5","FMA5",LEFT('Rough In'!B10,6)="45MBAA","45MBAA",LEFT('Rough In'!B10,6)="45MUAA","45MUAA",LEFT('Rough In'!B10,3)="FE5","FE5",LEFT('Rough In'!B10,3)="FT5","FT5",LEFT('Rough In'!B10,3)="FJ5","FJ5",TRUE,"")) ->  | J5: TU-EC-30BHCF
A6: FJ5 | B6: 24 | C6: 24 | D6: TU-EC-03BKN | E6: 3kw 230v-1ph — FJ5 size 24 only | F6: 1PH | G6: Nominal size | H6: =IF(H5="GCA",IFERROR(H4*12,""),IFERROR(H3*12,"")) -> 0
A7: FE5,FT5,FJ5 | B7: 24 | C7: 60 | D7: TU-EC-05BKB | E7: 5kw w/CB 230v-1ph — sizes 24-60 | F7: 1PH
A8: FE5,FT5,FJ5 | B8: 24 | C8: 60 | D8: TU-EC-08BKB | E8: 8kw w/CB 230v-1ph — sizes 24-60 | F8: 1PH | G8: Compatible packs ▼ | H8: =IF(OR(H5="",H6=""),"",IFERROR(_xlfn._xlws.FILTER(HeaterPacks[Part Number],ISNUMBER(SEARCH(H5,HeaterPacks[Family]))*(HeaterPacks[Size From]<=H6)*(HeaterPacks[Size To]>=H6)),"")) -> 
A9: FE5,FT5,FJ5 | B9: 24 | C9: 60 | D9: TU-EC-10BKB | E9: 10kw w/CB 230v-1ph — sizes 24-60 | F9: 1PH
A10: FE5,FT5,FJ5 | B10: 24 | C10: 60 | D10: TU-EC-15BKB | E10: 15kw w/CB 230v-1ph — sizes 24-60 | F10: 1PH
A11: FE5,FT5,FJ5 | B11: 30 | C11: 60 | D11: TU-EC-20BKB | E11: 20kw w/CB 230v-1ph — sizes 30-60 | F11: 1PH
A12: FE5,FT5,FJ5 | B12: 36 | C12: 60 | D12: TU-EC-15BHN | E12: 15kw 230v-3ph — sizes 36-60 | F12: 3PH
A13: FE5,FT5,FJ5 | B13: 42 | C13: 60 | D13: TU-EC-18BHN | E13: 15kw 230v-3ph — sizes 42-60 | F13: 3PH
A14: FE5,FT5,FJ5 | B14: 48 | C14: 60 | D14: TU-EC-25BHCF | E14: 24kw 230v-3ph (convertible to 1ph) — sizes 48-60 | F14: 3PH
A15: FE5,FT5,FJ5 | B15: 48 | C15: 60 | D15: TU-EC-30BHCF | E15: 30kw 230v-3ph (convertible to 1ph) — sizes 48-60 | F15: 3PH
A16: FMA5 | B16: 18 | C16: 36 | D16: TU-HK2-05B | E16: 5kw w/CB — FMA5 units | F16: 1PH
A17: FMA5 | B17: 18 | C17: 36 | D17: TU-HK2-08B | E17: 7.5kw w/CB — FMA5 units | F17: 1PH
A18: FMA5 | B18: 18 | C18: 36 | D18: TU-HK2-10B | E18: 10kw w/CB — FMA5 units | F18: 1PH
A19: 45MBAA,45MUAA | B19: 18 | C19: 36 | D19: EHKMC05KN | E19: 5kw — sizes 18,24,30,36 | F19: 1PH
A20: 45MBAA,45MUAA | B20: 18 | C20: 48 | D20: EHKMC08KN | E20: 8kw — sizes 18,24,30,36,48 | F20: 1PH
A21: 45MBAA,45MUAA | B21: 18 | C21: 60 | D21: EHKMC10KN | E21: 10kw — sizes 18,24,30,36,48,60 | F21: 1PH
A22: 45MBAA,45MUAA | B22: 24 | C22: 60 | D22: EHKMC15KN | E22: 15kw — sizes 24,30,36,48,60 | F22: 1PH
A23: 45MBAA,45MUAA | B23: 36 | C23: 60 | D23: EHKMC20KN | E23: 20kw — sizes 36,48,60 | F23: 1PH
A24: 45MBAA,45MUAA | B24: 60 | C24: 60 | D24: EHKMC25KN | E24: 25kw — size 60 only | F24: 1PH
A25: GCA | B25: 24 | C25: 72 | D25: KWCEH0301N05 | E25: 5kw non-fused — all GCA sizes | F25: 1PH
A26: GCA | B26: 24 | C26: 72 | D26: KWCEH0301N10 | E26: 10kw non-fused — all GCA sizes | F26: 1PH
A27: GCA | B27: 36 | C27: 72 | D27: KWCEH0301B15 | E27: 15kw w/CB — sizes 36-72 | F27: 1PH
A28: GCA | B28: 48 | C28: 72 | D28: KWCEH0301B20 | E28: 20kw w/CB — sizes 48-72 | F28: 1PH
A32: Labor Estimate
A33: System Types Dropdown
A34: Lower Level Left System:
A35: Lower Level Middle System:
A36: Lower Level Right System:
A37: Lower Level System:
A38: 2nd Floor System:
A39: Attic System:
A40: Crawl Space System:
A41: Horizontal System:
A42: 1st Floor System:
A43: 3rd Floor System:
A44: Zoned System:
A45: Mini Split System:
